{"text_format":"1","workbook":"xlsx","n_sheets":10,"sheets":["AER CF","AER NRs","AER lookups","AER ETL","Instructions","CONTENTS","Business & other details","N1. Demand","S1.1 Customer numbers","S1.2 Customer numbers"],"not_rendered":{"charts":0,"images":5,"macros":1,"external_links":0,"defined_names":757,"comments":1,"pivot_tables":0},"unopened":[],"bounds":{"document_bytes":16777216,"sheet_cells":100000,"rows_first":2000,"rows_last":500,"rows_between":2000,"halvings":0,"cell_chars":16384,"cell_head_chars":4096},"cells_cut":0,"cells_raw":0,"read":"whole","date_system":"1900"}

{"sheet":"AER CF","index":0,"n_rows":76,"n_cols":25,"rows_kept":76,"cut":false,"hidden":true,"merged":[[41,38,41,59],[41,69,41,90],[3,1,3,22],[39,38,39,59],[39,69,39,90],[40,38,40,59],[40,69,40,90]]}
[null,"AER CONDITIONAL FORMATTING"]
[]
[null,"CELLS FLAGED \"Y\" and greyed out will be greyed out in the worksheets."]
[null,"CONDITIONAL FORMATTING MAP"]
[null,null,null,null,null,"=INDEX(dms_CF_3.6.1, MATCH(dms_TradingName,dms_CF_TradingName))=\"Y\"","=INDEX(dms_CF_3.6.5, MATCH(dms_TradingName,dms_CF_TradingName))=\"Y\"","=INDEX(dms_CF_3.6.6.1, MATCH(dms_TradingName,dms_CF_TradingName))=\"Y\"","=INDEX(dms_CF_3.6.6.2, MATCH(dms_TradingName,dms_CF_TradingName))=\"Y\"","=INDEX(dms_CF_3.6.6.3, MATCH(dms_TradingName,dms_CF_TradingName))=\"Y\"","=INDEX(dms_CF_3.6.7.1, MATCH(dms_TradingName,dms_CF_TradingName))=\"Y\"","=INDEX(dms_CF_3.6.7.2, MATCH(dms_TradingName,dms_CF_TradingName))=\"Y\"","=INDEX(dms_CF_3.6.7.3, MATCH(dms_TradingName,dms_CF_TradingName))=\"Y\"","=INDEX(dms_CF_3.6.7.4, MATCH(dms_TradingName,dms_CF_TradingName))=\"Y\"","=INDEX(dms_CF_3.6.8, MATCH(dms_TradingName,dms_CF_TradingName))=\"Y\"","=INDEX(dms_CF_4.1, MATCH(dms_TradingName,dms_CF_TradingName))=\"Y\"","=INDEX(dms_CF_6.8, MATCH(dms_TradingName,dms_CF_TradingName))=\"Y\"","=INDEX(dms_CF_7.12, MATCH(dms_TradingName,dms_CF_TradingName))=\"Y\"","=INDEX(dms_CF_8.1_A, MATCH(dms_TradingName,dms_CF_TradingName))=\"Y\"","=INDEX(dms_CF_8.1_B, MATCH(dms_TradingName,dms_CF_TradingName))=\"Y\"",{"$f":"INDEX(dms_CF_8.1_Neg, MATCH(dms_TradingName,dms_CF_TradingName))=\"Y\"","v":true},"=INDEX(dms_CF_4.4.1_Neg, MATCH(dms_TradingName,dms_CF_TradingName))=\"Y\"",null,null,"=INDEX(dms_CF_F10, MATCH(dms_TradingName,dms_CF_TradingName))=\"Y\""]
[null,"dms_CF_TradingName","JurisdictionList","Sector","Segment","dms_CF_3.6.1","dms_CF_3.6.5","dms_CF_3.6.6.1","dms_CF_3.6.6.2","dms_CF_3.6.6.3","dms_CF_3.6.7.1","dms_CF_3.6.7.2","dms_CF_3.6.7.3","dms_CF_3.6.7.4","dms_CF_3.6.8","dms_CF_4.1","dms_CF_6.8 (set from dms_MAIFI_flag)","dms_CF_7.12","dms_CF_8.1_A  (and 8.4)","dms_CF_8.1_B  (and 8.4)","dms_CF_8.1_Neg  (and 8.4)","dms_CF_4.4.1","dms_CF_MAIFI_flag (set from dms_MAIFI_flag)","9.5 TUOS (set from Jurisdiction)","dms_CF_F10"]
[null,"Amadeus","NT","Gas","Transmission","-","-","-","-","-","-","-","-","-","-","-","-","-","-","-","-","-","-","-","-"]
[null,"APA GasNet","Vic","Gas","Transmission","-","-","-","-","-","-","-","-","-","-","-","-","-","-","-","-","-","-","-","-"]
[null,"Ausgrid","NSW","Electricity","Distribution",null,"Y","N","N","N","N","N","N","Y","N","N",{"$f":"IFERROR(IF(dms_MAIFI_flag=\"Yes\",\"N\",\"Y\"),\"Y\")","v":"Y"},"Y","N","Y","Y","N",{"$f":"IFERROR(LEFT(dms_MAIFI_flag),\"N\")","v":"N"},{"$f":"IF('AER CF'!$C7=\"Vic\",\"Y\",\"N\")","v":"N"}]
[null,"Ausgrid (Tx Assets)","NSW","Electricity","Distribution",null,"Y","N","N","N","N","N","N","Y","N","N",{"$f":"IFERROR(IF(dms_MAIFI_flag=\"Yes\",\"N\",\"Y\"),\"Y\")","v":"Y"},"Y","N","Y","Y","N",{"$f":"IFERROR(LEFT(dms_MAIFI_flag),\"N\")","v":"N"},{"$f":"IF('AER CF'!$C8=\"Vic\",\"Y\",\"N\")","v":"Y"}]
[null,"AusNet (D)","Vic","Electricity","Distribution",null,"N","N",null,null,"N","N","N","N","N","N",{"$f":"IFERROR(IF(dms_MAIFI_flag=\"Yes\",\"N\",\"Y\"),\"Y\")","v":"Y"},"N","N","N","Y","N",{"$f":"IFERROR(LEFT(dms_MAIFI_flag),\"N\")","v":"N"},{"$f":"IF('AER CF'!$C9=\"Vic\",\"Y\",\"N\")","v":"N"}]
[null,"AusNet (T)","Vic","Electricity","Transmission",null,"N",null,null,null,"N","N","N","N","N","Y",{"$f":"IFERROR(IF(dms_MAIFI_flag=\"Yes\",\"N\",\"Y\"),\"Y\")","v":"Y"},"N","N","N","Y","N",{"$f":"IFERROR(LEFT(dms_MAIFI_flag),\"N\")","v":"N"},{"$f":"IF('AER CF'!$C10=\"Vic\",\"Y\",\"N\")","v":"N"}]
[null,"Australian Distribution Co.","NSW","Electricity","Distribution","N","N","N","N",null,"N","N","N","N","N","N",{"$f":"IFERROR(IF(dms_MAIFI_flag=\"Yes\",\"N\",\"Y\"),\"Y\")","v":"Y"},"N","N","N","N","N",{"$f":"IFERROR(LEFT(dms_MAIFI_flag),\"N\")","v":"N"},{"$f":"IF('AER CF'!$C13=\"Vic\",\"Y\",\"N\")","v":"N"}]
[null,"Australian Distribution Co. (Vic)","Vic","Electricity","Distribution","N","N","N","N",null,"N","N","N","N","N","N",{"$f":"IFERROR(IF(dms_MAIFI_flag=\"Yes\",\"N\",\"Y\"),\"Y\")","v":"Y"},"N","N","N","N","N",{"$f":"IFERROR(LEFT(dms_MAIFI_flag),\"N\")","v":"N"},{"$f":"IF('AER CF'!$C14=\"Vic\",\"Y\",\"N\")","v":"Y"}]
[null,"CitiPower","Vic","Electricity","Distribution",null,"N","N",null,null,"N","N","N","N","N","N",{"$f":"IFERROR(IF(dms_MAIFI_flag=\"Yes\",\"N\",\"Y\"),\"Y\")","v":"Y"},"N","N","N","Y","N",{"$f":"IFERROR(LEFT(dms_MAIFI_flag),\"N\")","v":"N"},{"$f":"IF('AER CF'!$C15=\"Vic\",\"Y\",\"N\")","v":"Y"}]
[null,"Directlink","Qld","Electricity","Transmission",null,"N",null,null,null,"N","N","N","N","N","-",{"$f":"IFERROR(IF(dms_MAIFI_flag=\"Yes\",\"N\",\"Y\"),\"Y\")","v":"Y"},"N","N","Y","Y","N",{"$f":"IFERROR(LEFT(dms_MAIFI_flag),\"N\")","v":"N"},{"$f":"IF('AER CF'!$C16=\"Vic\",\"Y\",\"N\")","v":"N"}]
[null,"ElectraNet","SA","Electricity","Transmission",null,"N",null,null,null,"N","N","N","N","N","-",{"$f":"IFERROR(IF(dms_MAIFI_flag=\"Yes\",\"N\",\"Y\"),\"Y\")","v":"Y"},"N","N","Y","Y","N",{"$f":"IFERROR(LEFT(dms_MAIFI_flag),\"N\")","v":"N"},{"$f":"IF('AER CF'!$C17=\"Vic\",\"Y\",\"N\")","v":"N"}]
[null,"Endeavour Energy","NSW","Electricity","Distribution",null,"Y","N","Y","Y","N","N","N","Y","N","N",{"$f":"IFERROR(IF(dms_MAIFI_flag=\"Yes\",\"N\",\"Y\"),\"Y\")","v":"Y"},"Y","N","Y","Y","Y",{"$f":"IFERROR(LEFT(dms_MAIFI_flag),\"N\")","v":"N"},{"$f":"IF('AER CF'!$C18=\"Vic\",\"Y\",\"N\")","v":"N"}]
[null,"Energex","Qld","Electricity","Distribution",null,"Y","N",null,null,"N","N","N","N","N","N",{"$f":"IFERROR(IF(dms_MAIFI_flag=\"Yes\",\"N\",\"Y\"),\"Y\")","v":"Y"},"Y","N","Y","Y","Y",{"$f":"IFERROR(LEFT(dms_MAIFI_flag),\"N\")","v":"N"},{"$f":"IF('AER CF'!$C19=\"Vic\",\"Y\",\"N\")","v":"N"}]
[null,"Ergon Energy","Qld","Electricity","Distribution",null,"Y","N","Y","Y","N","N","N","N","N","N",{"$f":"IFERROR(IF(dms_MAIFI_flag=\"Yes\",\"N\",\"Y\"),\"Y\")","v":"Y"},"Y","N","Y","Y","N",{"$f":"IFERROR(LEFT(dms_MAIFI_flag),\"N\")","v":"N"},{"$f":"IF('AER CF'!$C20=\"Vic\",\"Y\",\"N\")","v":"N"}]
[null,"Essential Energy","NSW","Electricity","Distribution",null,"Y","N","Y","Y","N","N","N","Y","N","N",{"$f":"IFERROR(IF(dms_MAIFI_flag=\"Yes\",\"N\",\"Y\"),\"Y\")","v":"Y"},"Y","N","Y","Y","N",{"$f":"IFERROR(LEFT(dms_MAIFI_flag),\"N\")","v":"N"},{"$f":"IF('AER CF'!$C21=\"Vic\",\"Y\",\"N\")","v":"N"}]
[null,"Evoenergy Distribution","ACT","Electricity","Distribution",null,"Y","N","Y","Y","Y","Y","N","Y","N","Y",{"$f":"IFERROR(IF(dms_MAIFI_flag=\"Yes\",\"N\",\"Y\"),\"Y\")","v":"Y"},"Y","N","Y","Y","N",{"$f":"IFERROR(LEFT(dms_MAIFI_flag),\"N\")","v":"N"},{"$f":"IF('AER CF'!$C22=\"Vic\",\"Y\",\"N\")","v":"N"}]
[null,"Evoenergy Distribution (Tx Assets)","ACT","Electricity","Distribution",null,"Y","N","Y","Y","Y","Y","N","Y","N","Y",{"$f":"IFERROR(IF(dms_MAIFI_flag=\"Yes\",\"N\",\"Y\"),\"Y\")","v":"Y"},"Y","N","Y","Y","N",{"$f":"IFERROR(LEFT(dms_MAIFI_flag),\"N\")","v":"N"},{"$f":"IF('AER CF'!$C23=\"Vic\",\"Y\",\"N\")","v":"N"}]
[null,"Jemena Electricity","Vic","Electricity","Distribution",null,"N","N",null,null,"N","N","N","N","N","N",{"$f":"IFERROR(IF(dms_MAIFI_flag=\"Yes\",\"N\",\"Y\"),\"Y\")","v":"Y"},"N","N","N","Y","N",{"$f":"IFERROR(LEFT(dms_MAIFI_flag),\"N\")","v":"N"},{"$f":"IF('AER CF'!$C25=\"Vic\",\"Y\",\"N\")","v":"Y"}]
[null,"JGN","Vic","Gas","Distribution","-","-","-","-","-","-","-","-","-","-","-","-","-","-","-","-","-","-","-","-"]
[null,"Murraylink","SA","Electricity","Transmission",null,"N",null,null,null,"N","N","N","N","N","-",{"$f":"IFERROR(IF(dms_MAIFI_flag=\"Yes\",\"N\",\"Y\"),\"Y\")","v":"Y"},"N","N","Y","Y","N",{"$f":"IFERROR(LEFT(dms_MAIFI_flag),\"N\")","v":"N"},{"$f":"IF('AER CF'!$C26=\"Vic\",\"Y\",\"N\")","v":"N"}]
[null,"Power and Water","NT","Electricity","Distribution",null,"N","N",null,null,"N","Y","N","N","N","Y",{"$f":"IFERROR(IF(dms_MAIFI_flag=\"Yes\",\"N\",\"Y\"),\"Y\")","v":"Y"},"Y","Y","Y","Y","N",{"$f":"IFERROR(LEFT(dms_MAIFI_flag),\"N\")","v":"N"},{"$f":"IF('AER CF'!$C27=\"Vic\",\"Y\",\"N\")","v":"N"}]
[null,"Powercor Australia","Vic","Electricity","Distribution",null,"N","N",null,null,"N","N","N","N","N","N",{"$f":"IFERROR(IF(dms_MAIFI_flag=\"Yes\",\"N\",\"Y\"),\"Y\")","v":"Y"},"N","N","N","Y","N",{"$f":"IFERROR(LEFT(dms_MAIFI_flag),\"N\")","v":"N"},{"$f":"IF('AER CF'!$C28=\"Vic\",\"Y\",\"N\")","v":"Y"}]
[null,"Powerlink","Qld","Electricity","Transmission",null,"N",null,null,null,"N","N","N","N","N","-",{"$f":"IFERROR(IF(dms_MAIFI_flag=\"Yes\",\"N\",\"Y\"),\"Y\")","v":"Y"},"N","N","Y","Y","N",{"$f":"IFERROR(LEFT(dms_MAIFI_flag),\"N\")","v":"N"},{"$f":"IF('AER CF'!$C29=\"Vic\",\"Y\",\"N\")","v":"N"}]
[null,"Roma to Brisbane Pipeline","Qld","Gas","Transmission","-","-","-","-","-","-","-","-","-","-","-","-","-","-","-","-","-","-","-","-"]
[null,"SA Power Networks","SA","Electricity","Distribution",null,"Y","N",null,null,"N","N","N","N","N","N",{"$f":"IFERROR(IF(dms_MAIFI_flag=\"Yes\",\"N\",\"Y\"),\"Y\")","v":"Y"},"Y","N","Y","N","N",{"$f":"IFERROR(LEFT(dms_MAIFI_flag),\"N\")","v":"N"},{"$f":"IF('AER CF'!$C31=\"Vic\",\"Y\",\"N\")","v":"N"}]
[null,"TasNetworks (D)","Tas","Electricity","Distribution",null,"Y","N",null,null,"N","N","N","N","N","N",{"$f":"IFERROR(IF(dms_MAIFI_flag=\"Yes\",\"N\",\"Y\"),\"Y\")","v":"Y"},"Y","N","Y","Y","N",{"$f":"IFERROR(LEFT(dms_MAIFI_flag),\"N\")","v":"N"},{"$f":"IF('AER CF'!$C32=\"Vic\",\"Y\",\"N\")","v":"N"}]
[null,"TasNetworks (T)","Tas","Electricity","Transmission",null,"N",null,null,null,"N","N","N","N","N","-",{"$f":"IFERROR(IF(dms_MAIFI_flag=\"Yes\",\"N\",\"Y\"),\"Y\")","v":"Y"},"N","N","Y","Y","N",{"$f":"IFERROR(LEFT(dms_MAIFI_flag),\"N\")","v":"N"},{"$f":"IF('AER CF'!$C33=\"Vic\",\"Y\",\"N\")","v":"N"}]
[null,"TransGrid","NSW","Electricity","Transmission",null,"N",null,null,null,"N","N","N","N","N","-",{"$f":"IFERROR(IF(dms_MAIFI_flag=\"Yes\",\"N\",\"Y\"),\"Y\")","v":"Y"},"N","N","Y","Y","N",{"$f":"IFERROR(LEFT(dms_MAIFI_flag),\"N\")","v":"N"},{"$f":"IF('AER CF'!$C34=\"Vic\",\"Y\",\"N\")","v":"N"}]
[null,"United Energy","Vic","Electricity","Distribution",null,"N","N",null,null,"N","N","N","N","N","N",{"$f":"IFERROR(IF(dms_MAIFI_flag=\"Yes\",\"N\",\"Y\"),\"Y\")","v":"Y"},"N","N","N","Y","N",{"$f":"IFERROR(LEFT(dms_MAIFI_flag),\"N\")","v":"N"},{"$f":"IF('AER CF'!$C35=\"Vic\",\"Y\",\"N\")","v":"Y"}]
[]
[]
[null,"Confidential"]
[null,"Amended"]
[]
[null,"Worksheet 6.2 STPIS reliability"]
[null,"Formula",null,null,null,"Applied to:"]
[]
[null,"=INDEX(dms_CBD_flag,MATCH(dms_TradingName,dms_TradingName_List))=\"NO\"",null,null,null,"$D$11,$D$17,$D$23,$D$33,$D$39,$D$45,$D$55,$D$61,$D$67,$D$77,$D$83,$D$89"]
[null,"=INDEX(dms_Urban_flag,MATCH(dms_TradingName,dms_TradingName_List))=\"NO\"",null,null,null,"$D$12,$D$18,$D$24,$D$56,$D$62,$D$78,$D$68,$D$84"]
[null,"=INDEX(dms_ShortRural_flag,MATCH(dms_TradingName,dms_TradingName_List))=\"NO\"",null,null,null,"$D$13,$D$19,$D$25,$D$57,$D$63,$D$69,$D$79,$D$85"]
[null,"=INDEX(dms_LongRural_flag,MATCH(dms_TradingName,dms_TradingName_List))=\"NO\"",null,null,null,"$D$14,$D$20,$D$26,$D$58,$D$64,$D$65,$D$70,$D$71,$D$80,$D$86"]
[null,"=INDEX(dms_FeederType_5_flag,MATCH(dms_TradingName,dms_TradingName_List))=\"NO\"",null,null,null,"$D$87,$D$81,$D$71,$D$65,$D$59,$D$49,$D$43,$D$37,$D$21,$D$15"]
[null,"=dms_MAIFI_Flag=\"No\"",null,null,null,"$D$55:$D$72"]
[]
[]
[null,"Business & other details"]
[null,"=(INDEX(dms_Model_Span,MATCH(dms_Model,dms_Model_List))>1)"]
[null,"=(INDEX(dms_Model_Span,MATCH(dms_Model,dms_Model_List))=1)"]
[]
[]
[null,"STYLES IN USE"]
[null,"HEADING ONE","dms_1"]
[null,"HEADING TWO","dms_2"]
[null,"HEADING THREE","dms_3"]
[null,"HEADING FOUR","dms_4"]
[null,"HEADING FIVE","dms_5"]
[null,5.1109999999999998,"dms_NUM"]
[null,5.45E-2,"dms_NUM%"]
[null,5.5555000000000003,"dms_NUM3d"]
[null,"Text description","dms_Row_Locked"]
[null,"Text description","dms_Row1"]
[null,"Text description","dms_Row2"]
[null,"Total","dms_T1"]
[null,"Total","dms_T2"]
[null,"EXPENSES","dms_BH"]
[null,2019,"dms_BY1"]
[null,2019,"dms_BY2"]
[null,"VOLUMES","dms_GH"]
[null,2019,"dms_GY1"]
[null,2019,"dms_GY2"]

{"sheet":"AER NRs","index":1,"n_rows":232,"n_cols":16,"rows_kept":232,"cut":false,"hidden":true,"merged":[[4,1,28,1],[32,1,55,1],[33,10,35,10],[33,36,33,57],[33,67,33,88],[34,36,34,57],[34,67,34,88],[35,36,35,57],[35,67,35,88],[36,10,40,10],[44,10,45,10],[65,1,78,1],[84,1,97,1],[100,1,107,1],[110,1,115,1],[118,1,132,1],[195,1,196,1],[199,1,200,1],[208,1,213,1],[135,1,150,1],[152,1,158,1],[160,1,174,1],[176,1,177,1],[179,1,184,1],[191,1,192,1]]}
[null,"AER NAMED RANGES"]
[]
[null,"DROP DOWN SELECTORS USED IN WORKBOOKS"]
[]
[null,"COVER SHEET","dms_DataQuality_List","dms_Confid_status_List"]
[null,null,"-- select --","-- select --"]
[null,null,"Actual","Public"]
[null,null,"Estimate","Confidential"]
[null,null,"Consolidated"]
[]
[]
[null,null,"For all files either AER or business needs to be able to specify the type of submission","For PTRM & RFM templates we must provide a choice in case they change their form of control - otherwise it is drawn from the business specific lookup table above."]
[null,null,"dms_SourceList","dms_FormControl_Choices"]
[null,null,"-- select --","Revenue cap"]
[null,null,"After appeal","Revenue yield"]
[null,null,"Draft decision","Tariff cap"]
[null,null,"Final decision","Weighted average price cap"]
[null,null,"PTRM update 1"]
[null,null,"PTRM update 2"]
[null,null,"PTRM update 3"]
[null,null,"PTRM update 4"]
[null,null,"PTRM update 5"]
[null,null,"PTRM update 6"]
[null,null,"PTRM update 7"]
[null,null,"Reallocated"]
[null,null,"Recast"]
[null,null,"Regulatory proposal"]
[null,null,"Reporting"]
[null,null,"Revised regulatory proposal"]
[]
[]
[null,null,null,null,null,null,null,null,null,null,"This is used to create an image to insert on 6.3 STPIS sheet - not for dropdown lists.",null,null,"GAS"]
[null,"CA & RESET RINS \nDNSP","dms_DNSP_020301_SubstationType","dms_DNSP_020301_ProjectType","dms_DNSP_020301_ProjectTrigger","dms_DNSP_020302_ProjectType","dms_DNSP_020302_ProjectTrigger","dms_STPIS_Exclusion_List","dms_Reason_Interruption","dms_Reason_Interruption_Detailed","Reason for interruption",null,null,"dms_N0205_AssetType"]
[null,null,"Subtransmission substation","New substation establishment","Demand growth","New line on new route - single circuit","Demand growth","Weather","Animal","Animal impact","Animal","Animal impact",null,"Cast Iron"]
[null,null,"Zone substation","Substation upgrade - capacity"," Voltage issues","New line on new route - dual circuit"," Voltage issues","Equipment failure","Asset failure","Animal nesting/burrowing, etc and other",null,"Animal nesting/burrowing, etc and other",null,"PVC"]
[null,null,"Switching station","Substation upgrade - voltage"," Reactive power issue","New line on new route - other"," Reactive power issue","Operational error","Other","Other",null,"Other",null,"Polyamide"]
[null,null,"Other","Other"," Fault level issues","Line rebuild over existing route - single circuit"," Fault level issues","Vegetation","Overloads","LV","Asset failure","LV",null,"High density polyethylene (80)"]
[null,null,null,null," Safety","Line rebuild over existing route - dual circuit"," Net market benefit","Animals","Planned","Distribution substation",null,"Distribution substation",null,"High density polyethylene (100)"]
[null,null,null,null," Environment","Reconductor - Single circuit"," Safety","Third party impacts","Network business","HV",null,"HV",null,"High density polyethylene (250)"]
[null,null,null,null," Other","Reconductor - Dual circuit"," Environment","Transmission failure","Third party","Zone substation",null,"Zone substation",null,"High density polyethylene (575)"]
[null,null,null,null,null,"Reconductor - Other"," Other","Load shedding","Unknown","Subtransmission",null,"Subtransmission",null,"Medium density polyethylene"]
[null,null,null,null,null,"Line upgrade - raising/retensoring",null,"Inter-distributor connection failure","Vegetation","insert description of 'other'","Other","insert description of 'other'",null,"Unprotected steel"]
[null,null,null,null,null,"Line upgrade - voltage upgrade",null,"Other","Weather","Network error","Overloads",null,null,"Protected steel"]
[null,null,null,null,null,"Line upgrade - capacity",null,null,"2 - STPIS Exclusion (3.3)(a)","Switching and protection error","Planned",null,null,"Other"]
[null,null,null,null,null,"String spare circuit",null,null,"3 - STPIS Exclusion (3.3)(a)","Fire","Network business","Network error"]
[null,null,null,null,null,"Other",null,null,"4 - STPIS Exclusion (3.3)(a)","Other",null,"Switching and protection error"]
[null,null,null,null,null,null,null,null,"5 - STPIS Exclusion (3.3)(a)","Dig-in","Third party","Fire"]
[null,null,null,null,null,null,null,null,"6 - STPIS Exclusion (3.3)(a)","Unauthorised access",null,"Other"]
[null,null,null,null,null,null,null,null,"7 - STPIS Exclusion (3.3)(a)","Vehicle impact",null,"Dig-in"]
[null,null,null,null,null,null,null,null,null,"Unknown",null,"Unauthorised access"]
[null,null,null,null,null,null,null,null,null,"Blow-in/Fall-in - NSP responsibility",null,"Vehicle impact"]
[null,null,null,null,null,null,null,null,null,"Grow-in - NSP responsibility","Unknown","Unknown"]
[null,null,null,null,null,null,null,null,null,"Blow-in/Fall-in - Other responsible party","Vegetation","Blow-in/Fall-in - NSP responsibility"]
[null,null,null,null,null,null,null,null,null,"Grow-in - Other responsible party",null,"Grow-in - NSP responsibility"]
[null,null,null,null,null,null,null,null,null,null,null,"Blow-in/Fall-in - Other responsible party"]
[null,null,null,null,null,null,null,null,null,null,null,"Grow-in - Other responsible party"]
[null,null,null,null,null,null,null,null,null,null,"Weather"]
[null,null,null,null,null,null,null,null,null,null,"2 - STPIS Exclusion (3.3)(a)"]
[null,null,null,null,null,null,null,null,null,null,"3 - STPIS Exclusion (3.3)(a)"]
[null,null,null,null,null,null,null,null,null,null,"4 - STPIS Exclusion (3.3)(a)"]
[null,null,null,null,null,null,null,null,null,null,"5 - STPIS Exclusion (3.3)(a)"]
[null,null,null,null,null,null,null,null,null,null,"6 - STPIS Exclusion (3.3)(a)"]
[null,null,null,null,null,null,null,null,null,null,"7 - STPIS Exclusion (3.3)(a)"]
[]
[]
[null,"CA & RESET RINS \nTNSP ","dms_TNSP_0203_SubstationType","dms_TNSP_020301_ProjectType","dms_TNSP_020301_ProjectTrigger","dms_TNSP_020302_ProjectType","dms_TNSP_0203_ProjectTrigger"]
[null,null,"Terminal station","New substation establishment","Demand growth","New line on new route - single circuit","Demand growth"]
[null,null,"Switching station","Capacity upgrade"," Voltage issues","New line on new route - dual circuit"," Voltage issues"]
[null,null,"Transmission substation","Voltage upgrade"," Reactive power issue","New line on new route - other"," Reactive power issue"]
[null,null,"Other","Other"," Fault level issues","Line rebuild over existing route - single circuit"," Fault level issues"]
[null,null,null,null,"Net market benefit","Line rebuild over existing route - dual circuit"," Net market benefit"]
[null,null,null,null," Safety","Reconductor - Single circuit"," Safety"]
[null,null,null,null," Environment","Reconductor - Dual circuit"," Environment"]
[null,null,null,null," Other","Reconductor - Other"," Other"]
[null,null,null,null,null,"Line upgrade - raising/retensoring"]
[null,null,null,null,null,"Line upgrade - voltage upgrade"]
[null,null,null,null,null,"Line upgrade - capacity"]
[null,null,null,null,null,"String spare circuit"]
[null,null,null,null,null,"Other"]
[]
[]
[]
[null,"NAMED RANGES USED IN ETL PROCESS"]
[null,null,null,null,null,null,null,null,null,null,null,null,"GAS ARR & RESET"]
[null,"CA & RESET RINS \nDNSP ONLY","dms_020303_01_UOM","dms_020501_01_UOM","dms_020501_02_UOM","dms_020501_03_UOM","dms_020501_04_UOM","dms_020701_01_UOM","dms_020701_02_UOM","dms_020701_01_Rows","dms_040102_01_UOM","dms_040102_04_UOM","dms_S140101_UOM","dms_S140201_UOM","dms_E050201_UOM","dms_E050202_UOM"]
[null,null,"Circuit line length in km","0's","0's","0's","0's","km","km","Route line length within zone","0's","days","number","number per km","per metre per connection","metres per connection"]
[null,null,"Circuit line length in km","0's","0's","0's","0's","0's","0's","Number of maintenance spans","0's","0's","number","number","per service per connection","number per connection"]
[null,null,"Circuit line length in km","MVA added","MVA added","MVA added","MVA added","km","km","Total length of maintenance spans","0's","$0s","number","number","number per connection","number per connection"]
[null,null,"Circuit line length in km","0's","0's","0's","0's","km","km","Length of vegetation corridors","$0s","0's","km"]
[null,null,"Number","total spend $0s","total spend $0s","total spend $0s","total spend $0s","0's","0's","Average number of trees per maintenance span"]
[null,null,"Number","net circuit km added","net circuit km added","net circuit km added","net circuit km added","years","years","Average frequency of cutting cycle"]
[null,null,"Number","total spend $0s","total spend $0s","total spend $0s","total spend $0s"]
[null,null,null,"net circuit km added","net circuit km added","net circuit km added","net circuit km added"]
[null,null,null,"total spend $0s","total spend $0s","total spend $0s","total spend $0s"]
[null,null,null,"0's",null,"$0s"]
[null,null,null,"0's"]
[null,null,null,"0's"]
[null,null,null,"$0s"]
[]
[]
[null,"CA & RESET RINS \nTNSP ONLY","dms_020701_01_UOM"]
[null,null,"km"]
[null,null,"0's"]
[null,null,"km"]
[null,null,"0's"]
[null,null,"km"]
[null,null,"metres"]
[null,null,"years"]
[]
[]
[null,"CA & RESET RINS \nDNSP & TNSP","dms_020603_01_UOM"]
[null,null,"0's"]
[null,null,"0's"]
[null,null,"0's"]
[null,null,"0's"]
[null,null,"(per cent)"]
[]
[]
[null,"EB & RESET RINS \nDNSP ONLY","dms_030601_01_UOM","dms_030601_02_UOM","dms_030701_01_UOM","dms_030702_01_UOM","dms_030703_01_UOM"]
[null,null,"minutes/customer","minutes/customer","Customer / km","%","km"]
[null,null,"minutes/customer","minutes/customer","MWh/customer","Number of spans"]
[null,null,"interruptions/customer","interruptions/customer","kVA / customer","Number of spans"]
[null,null,"interruptions/customer","interruptions/customer",null,"Number of spans"]
[null,null,null,null,null,"Number of spans"]
[null,null,null,null,null,"Years"]
[null,null,null,null,null,"Years"]
[null,null,null,null,null,"Trees"]
[null,null,null,null,null,"Trees"]
[null,null,null,null,null,"Defects"]
[null,null,null,null,null,"Defects"]
[null,null,null,null,null,"Spans"]
[null,null,null,null,null,"km"]
[null,null,null,null,null,"Spans"]
[]
[null,null,"WHEN INSERTING COVER SHEET INTO A TNSP FILE - APPLY THESE NAMED RANGES"]
[null,"EB & RESET RINS \nTNSP ONLY","dms_030601_01_UOM",null,"dms_030701_01_UOM","dms_030702_01_UOM"]
[null,null,"%",null,"Number of spans","km"]
[null,null,"number",null,"Years","%"]
[null,null,"number",null,"Trees","km"]
[null,null,"%",null,"Defects","number"]
[null,null,"number",null,"Number of spans"]
[null,null,"number",null,"km"]
[null,null,"%",null,"km"]
[null,null,"number",null,"Number of spans"]
[null,null,"number"]
[null,null,"%"]
[null,null,"number"]
[null,null,"%"]
[null,null,"number"]
[null,null,"%"]
[null,null,"number"]
[]
[null,"EB & RESET RINS \nDNSP & TNSP","dms_EB_RAB_PIT"]
[null,null,"Beginning of year"]
[null,null,"End of year"]
[null,null,"End of year"]
[null,null,"End of year"]
[null,null,"End of year"]
[null,null,"End of year"]
[]
[null,"ARR \nDNSP ONLY","dms_030605_UOM","dms_03060703_UOM","dms_E020202_UOM","Spare"]
[null,null,"number","number","Length of mains replaced"]
[null,null,"number","number","Number of services replaced"]
[null,null,"number","number"]
[null,null,"number","number"]
[null,null,"number","(per cent)"]
[null,null,"number"]
[null,null,"number"]
[null,null,"number"]
[null,null,"number"]
[null,null,"number"]
[null,null,"number"]
[null,null,"number"]
[null,null,"(per cent)"]
[null,null,"(per cent)",""]
[]
[null,"RFM","dms_Beg","dms_Mid","dms_End"]
[null,null,"Beginning of year","Mid year","End of Year"]
[]
[null,"PTRM","dms_PTRM_RAB_PIT","dms_PTRM_TAB_PIT","DMS_Xfactor"]
[null,null,"Beginning of year","Beginning of year","x factors"]
[null,null,"End of year","End of year"]
[null,null,"End of year","End of year"]
[null,null,"End of year","End of year"]
[null,null,"End of year"]
[]
[]
[null,"STPIS & MIC NAMED RANGES "]
[]
[null,"These \"row descriptions\" are the column headings in the various templates but become row descriptions in the ETL process"]
[]
[null,"Table 6.3 sustained interruptions - row descriptions","dms_060301_CustNo_Affected_Row","dms_060301_Avg_Duration_Sustained_Int_Row","dms_060301_Effect_unplanned_SAIDI_Row","dms_060301_Effect_unplanned_SAIFI_Row"]
[null,null,"Number of customers affected by the interruption","Average duration of sustained customer interruption","Effect on unplanned SAIDI","Effect on unplanned SAIFI"]
[]
[]
[null,"Table 6.1 telephone answering - row descriptions and start date","dms_060101_Rows","dms_060102_Rows","dms_060101_StartDateTxt"]
[null,null,"Total number of calls \n(after removing excluded events)","Number of calls answered within 30 seconds \n(after excluding excluded events) ",{"$f":"dms_060701_StartDateTxt","v":"1-Jul-2016"}]
[]
[]
[null,"Table 6.8.1 - row descriptions","dms_060801_01_Rows","dms_060801_02_Rows","dms_060801_03_Rows","dms_060801_04_Rows"]
[null,null,"Number of interruptions","Duration of interruptions","Total unplanned minutes off supply","Effect on unplanned MAIFI"]
[]
[]
[null,"Table 7.9.4 - market impact component - row descriptions","dms_070904_01_Rows","without exclusions","with exclusions"]
[]
[]
[null,"These headings (Lists) are determined from the INDEX/MATCH function on the NSP selected on the Business & other details sheet"]
[]
[null,"Table 6.7.1 - daily performance data - unplanned - MAIFI  -- row descriptions and header named range values","dms_060701_Feeder_Header_Lvl4",{"$f":"INDEX(dms_FeederName_1,MATCH(dms_TradingName,dms_TradingName_List))","v":"CBD"},{"$f":"INDEX(dms_FeederName_1,MATCH(dms_TradingName,dms_TradingName_List))","v":"CBD"},{"$f":"INDEX(dms_FeederName_2,MATCH(dms_TradingName,dms_TradingName_List))","v":"Urban"},{"$f":"INDEX(dms_FeederName_2,MATCH(dms_TradingName,dms_TradingName_List))","v":"Urban"},{"$f":"INDEX(dms_FeederName_3,MATCH(dms_TradingName,dms_TradingName_List))","v":"Short rural"},{"$f":"INDEX(dms_FeederName_3,MATCH(dms_TradingName,dms_TradingName_List))","v":"Short rural"},{"$f":"INDEX(dms_FeederName_4,MATCH(dms_TradingName,dms_TradingName_List))","v":"Long rural"},{"$f":"INDEX(dms_FeederName_4,MATCH(dms_TradingName,dms_TradingName_List))","v":"Long rural"},{"$f":"IF((INDEX(dms_FeederName_5,MATCH(dms_TradingName,dms_TradingName_List))=0),\"Network\",(INDEX(dms_FeederName_5,MATCH(dms_TradingName,dms_TradingName_List))))","v":"Network"},{"$f":"IF((INDEX(dms_FeederName_5,MATCH(dms_TradingName,dms_TradingName_List))=0),\"Network\",(INDEX(dms_FeederName_5,MATCH(dms_TradingName,dms_TradingName_List))))","v":"Network"},"Network","Network"]
[]
[null,null,"dms_060701_Rows","All events","After removing excluded events","All events","After removing excluded events","All events","After removing excluded events","All events","After removing excluded events","All events","After removing excluded events","All events","After removing excluded events"]
[null,null,null,"the number of column headings changes from 10 to 12 depending on the number of feeder categories for the NSP"]
[]
[null,null,"dms_0603_FeederList",{"$f":"INDEX(dms_FeederName_1,MATCH(dms_TradingName,dms_TradingName_List))","v":"CBD"},{"$f":"INDEX(dms_FeederName_2,MATCH(dms_TradingName,dms_TradingName_List))","v":"Urban"},{"$f":"INDEX(dms_FeederName_3,MATCH(dms_TradingName,dms_TradingName_List))","v":"Short rural"},{"$f":"INDEX(dms_FeederName_4,MATCH(dms_TradingName,dms_TradingName_List))","v":"Long rural"}]
[]
[]
[null,"Use these to add to specific worksheets in existing files","Use these to add to specific worksheets in existing files"]
[]
[]
[null,"ARRs 6.7 STPIS daily performance","dms_060101_Values","dms_060102_Values","dms_060701_Values"]
[null,null,"dms_LeapYear"]
[]
[]
[null,"ARR's  6.8 STPIS exclusions","dms_060801_Event_Date","dms_060801_OutageID","dms_060801_FeederID","dms_060801_FeederClass","dms_060801_CauseID","dms_060801_01_Values","dms_060801_02_Values","dms_060801_03_Values","dms_060801_Excl_Cat","dms_060801_04_Values"]
[null,null,"dms_060801_StartCell"]
[]
[]
[null,"CA 6.3 sustained interruptions","dms_060301_Event_Date","dms_060301_Event_Time","dms_060301_AssetID","dms_060301_FeederClass","dms_060301_Reason","dms_060301_DetailedReason","dms_060301_CustNo_Affected_Values","dms_060301_Avg_Duration_Sustained_Int_Values","dms_060301_Effect_unplanned_SAIDI_Values","dms_060301_Effect_unplanned_SAIFI_Values","dms_060301_MED"]
[]
[]
[]
[null,"PTRM input sheet","DMS_50_01_01a","DMS_50_01_01aa","DMS_50_01_01b","DMS_50_01_01bb","DMS_50_01_01c","DMS_50_01_01d","DMS_50_01_01dd"]

{"sheet":"AER lookups","index":2,"n_rows":101,"n_cols":37,"rows_kept":101,"cut":false,"hidden":true,"merged":[[33,1,33,4],[10,25,10,35],[11,25,11,28],[11,30,11,34],[11,35,13,35]]}
[null,"AER LOOKUP TABLES"]
[]
[null,"Data in these columns used for data validation and database purposes."]
[null,"Date last modified:","2017-01-16","added (Albury and Victora) for AGN"]
[null,null,"2016-10-17","updated TransGrid's correct legal name, corrected TasNetworks (T) to June financial year"]
[null,null,"2017-02-01","inserted Power and Water, added NRs (dms_FeederCat_1 and dms_FeederCat_2)"]
[null,null,"2017-03-03","inserted AEMO as a business"]
[null,null,"2018-03-28","major changes to accommodate STPIS"]
[null,null,"Template Version",5]
[]
[null,null,null,null,null,null,null,null,null,null,null,null,null,null,null,null,null,null,null,null,null,null,null,null,null,"FOR ELECTRICITY BUSINESSES ONLY"]
[null,null,null,null,null,null,null,null,null,null,null,null,null,null,null,null,null,null,null,null,null,null,null,null,null,"Feeder Types",null,null,null,"TasNetworks (D)","Feeder Names"]
[]
[null,null,null,null,null,null,null,null,null,null,null,null,null,null,null,null,null,null,null,null,null,null,null,null,null,"CBD","Urban","Short rural","long rural","EXTRA"]
[null,"dms_TradingName_List","dms_TradingNameFull_List","dms_ABN_List","dms_JurisdictionList","dms_Sector_List","dms_Segment_List","dms_FormControl_List","dms_RPT_List","dms_RPTMonth_List","dms_CRCPlength_List","dms_FRCPlength_List","dms_PRCPlength_List","dms_663_List","dms_DeterminationRef_List","dms_Addr1_List","dms_Addr2_List","dms_Suburb_List","dms_State_List","dms_PostCode_List","dms_PAddr1_List","dms_PAddr2_List","dms_PSuburb_List","dms_PState_List","dms_PPostCode_List","dms_CBD_flag","dms_Urban_flag","dms_ShortRural_flag","dms_LongRural_flag","dms_FeederType_5_flag","dms_FeederName_1","dms_FeederName_2","dms_FeederName_3","dms_FeederName_4","dms_FeederName_5","dms_Public_Lighting_List","Name"]
[null,"AGN (Albury and Victoria)","Australian Gas Networks Limited (reporting data for Albury and Victoria)",19078551685,"Vic","Gas","Distribution","Tariff cap","Financial","June",5,5,5,"x",null,"Level 6","400 King William Street","ADELAIDE","SA",5000,"PO Box 6468","Halifax Street","ADELAIDE","SA",5000,"NO","NO","NO","NO","NO","CBD","Urban","Short rural","Long rural",null,"NO",{"$f":"B16","v":"AGN (Albury and Victoria)"}]
[null,"AGN (Albury)","Australian Gas Networks Limited (reporting data for Albury)",19078551685,"Vic","Gas","Distribution","Tariff cap","Financial","June",5,5,5,"x",null,"Level 6","400 King William Street","ADELAIDE","SA",5000,"PO Box 6468","Halifax Street","ADELAIDE","SA",5000,"NO","NO","NO","NO","NO","CBD","Urban","Short rural","Long rural",null,"NO","AGN (Albury)"]
[null,"AGN (SA)","Australian Gas Networks Limited (reporting data for SA)",19078551685,"SA","Gas","Distribution","Tariff cap","Financial","June",5,5,5,5,"distribution determination","Level 6","400 King William Street","ADELAIDE","SA",5000,"PO Box 6468","Halifax Street","ADELAIDE","SA",5000,"NO","NO","NO","NO","NO","CBD","Urban","Short rural","Long rural",null,"NO","AGN (SA)"]
[null,"AGN (Victoria)","Australian Gas Networks Limited (reporting data for Victoria)",19078551685,"Vic","Gas","Distribution","Tariff cap","Financial","June",5,5,5,"x",null,"Level 6","400 King William Street","ADELAIDE","SA",5000,"PO Box 6468","Halifax Street","ADELAIDE","SA",5000,"NO","NO","NO","NO","NO","CBD","Urban","Short rural","Long rural",null,"NO","AGN (Victoria)"]
[null,"Amadeus","APT Pipelines (NT) Pty Ltd",39009737393,"NT","Gas","Transmission","Tariff cap","Financial","June",5,5,5,"x","n/a","Level 19, HSBC Building","580 George Street","SYDNEY","NSW",2000,"Level 19, HSBC Building","580 George Street","SYDNEY","NSW",2000,"NO","NO","NO","NO","NO","CBD","Urban","Short rural","Long rural",null,"NO","Amadeus"]
[null,"APA GasNet","APA GasNet Australia (Operations) Pty Ltd","065083009","Vic","Gas","Transmission","Weighted average price cap","Financial","June",5,5,5,"x",null,"Level 19, HSBC Building","580 George Street","SYDNEY","NSW",2000,"PO Box R41",null,"ROYAL EXCHANGE","NSW",1225,"Alexandra Curran","02 9275 0020","alexandra.curran@apa.com.au","NO","NO","NO","NO","NO","-","CBD","Urban","APA GasNet"]
[null,"APA VTS","APA VTS Australia (Operations) Pty Ltd",65083009,"Vic","Gas","Transmission","Tariff cap","Financial","June",5,5,5,"x",null,"Level 19, HSBC Building","580 George Street","SYDNEY","NSW",2000,"PO Box R41",null,"ROYAL EXCHANGE","NSW",1225,"NO","NO","NO","NO","NO","CBD","Urban","Short rural","Long rural",null,"NO","APA VTS"]
[null,"AusNet (Gas)","AusNet Gas Services","086015036","Vic","Gas","Distribution","Tariff cap","Financial","June",5,5,5,"-","-","Level 31","2 Southbank Boulevard","SOUTHBANK","Vic",3008,null,null,null,"Vic",null,"NO","NO","NO","NO","NO","CBD","Urban","Short rural","Long rural",null,"NO","AusNet (Gas)"]
[null,"Australian Distribution Co. (Gas)","Australian Gas Distribution Co. ",11222333444,"Vic","Gas","Distribution","Tariff cap","Financial","June",5,5,5,"-","-","123 Straight Street",null,"MELBOURNE","Vic",3000,"PO Box 123",null,"MELBOURNE","Vic",3000,"NO","NO","NO","NO","NO","CBD","Urban","Short rural","Long rural",null,"NO","Australian Distribution Co. (Gas)"]
[null,"Australian Transmission Co. (Gas)","Australian Transmission Co. (Gas)",11222333444,"NSW","Gas","Transmission","Tariff cap","Financial","June",5,5,5,5,"transmission determination","123 Straight Street",null,"SYDNEY","NSW",2000,"PO Box 123",null,"SYDNEY","NSW",2000,"NO","NO","NO","NO","NO","CBD","Urban","Short rural","Long rural",null,"NO","Australian Transmission Co. (Gas)"]
[null,"Evoenergy Gas","Icon Distribution Investments Limited (ABN 83 073 025 224) and Jemena Networks (ACT) Pty Ltd (ABN 24 008 552 663)",76670568688,"ACT","Gas","Distribution","Tariff cap","Financial","June",5,5,5,"x",null,"40 Bunda Street",null,"CANBERRA","ACT",2600,"GPO BOX 366",null,"CANBERRA","ACT",2601,"NO","NO","NO","NO","NO","CBD","Urban","Short rural","Long rural",null,"NO","Evoenergy Gas"]
[null,"JGN","Jemena Gas Networks (NSW) Ltd","003 004 322","NSW","Gas","Distribution","Tariff cap","Financial","June",5,5,5,null,null,null,null,null,null,null,null,null,null,null,null,"NO","NO","NO","NO","NO","CBD","Urban","Short rural","Long rural",null,"NO","JGN"]
[null,"Multinet Gas","Multinet Gas (DB No.1) Pty Ltd (ACN 086 026 986), Multinet Gas (DB No.2) Pty Ltd (ACN 086 230 122)","086026986","Vic","Gas","Distribution","Tariff cap","Financial","June",5,5,5,"x",null,"43-45 Centreway",null,"MT WAVERLEY","Vic",3149,null,null,null,"Vic",null,"NO","NO","NO","NO","NO","CBD","Urban","Short rural","Long rural",null,"NO","Multinet Gas"]
[null,"Roma to Brisbane Pipeline","APT Petroleum Pipelines Limited t/a Roma to Brisbane Pipeline","009 737 393","Qld","Gas","Transmission","Tariff cap","Financial","June",5,5,5,"x","n/a","580 George Street",null,"SYDNEY","NSW",2000,"PO Box R41",null,"ROYAL EXCHANGE","NSW",1225,"NO","NO","NO","NO","NO","CBD","Urban","Short rural","Long rural",null,"NO","Roma to Brisbane Pipeline"]
[]
[]
[]
[]
[null,"The Reg Year Ending (dms_RYE) must be set to the last year of the regulatory period. For forecast data is is usually (FRCP_y5) for actual it is a single year (CRY). For historical actual data the RYE will need to be set manually in the business details sheet by setting the dms_Multiyear_flag to 1 and putting the correct value in 'dms_Specified_FinalYear. See cells C67:C68"]
[null,"dms_Model_List ","dms_Model_Name_Format1","dms_Worksheet_List","dms_Model_Span_List"]
[null,"ARR","Annual Reporting",{"$f":"IF(dms_MultiYear_ResponseFlag=\"yes\",\"NEW HISTORICAL ANNUAL REPORTING\",\"ANNUAL REPORTING\")","v":"ANNUAL REPORTING"},1]
[null,"CA","Category Analysis",{"$f":"IF(dms_MultiYear_ResponseFlag=\"yes\",\"NEW HISTORICAL CATEGORY ANALYSIS\",\"CATEGORY ANALYSIS\")","v":"CATEGORY ANALYSIS"},1]
[null,"CESS","Capitlal Expenditure","CAPITLAL EXPENDITURE SHARING SCHEMING",5]
[null,"CPI","CPI","CPI",5]
[null,"EB","Economic Benchmarking",{"$f":"IF(dms_MultiYear_ResponseFlag=\"yes\",\"NEW HISTORICAL ECONOMIC BENCHMARKING\",\"ECONOMIC BENCHMARKING\")","v":"ECONOMIC BENCHMARKING"},1]
[null,"EBSS","Efficiency Benefit Sharing Scheme","EFFICIENCY BENEFIT SHARING SCHEME",5]
[null,"Pricing","Pricing Proposal","PRICING PROPOSAL",5]
[null,"Profitability","Profitability","PROFITABILITY",5]
[null,"PTRM","Post Tax Revenue Model","POST TAX REVENUE MODEL",5]
[null,"Reset","Regulatory Reporting (Reset)","REGULATORY REPORTING STATEMENT",5]
[null,"RFM","Roll Forward Model","ROLL FORWARD MODEL",5]
[null,"WACC","Weighted Average Cost of Capital","WEIGHTED AVERAGE COST OF CAPITAL",1]
[]
[]
[]
[null,"Financial","Calendar",null,"PREVIOUS",null,"CURRENT",null,"FORTHCOMING"]
[null,"1987-88","1988","PRCP_y1",{"$f":"INDEX(INDIRECT(dms_RPT),dms_PRCP_start_row)","v":"2013-14"},"CRCP_y1",{"$f":"INDEX(INDIRECT(dms_RPT),dms_CRCP_start_row)","v":"2018-19"},{"$f":"FRCP_y1","v":"2023-24"},{"$f":"INDEX(INDIRECT(dms_RPT),dms_FRCP_start_row)","v":"2023-24"}]
[null,"1988-89","1989","PRCP_y2",{"$f":"INDEX(INDIRECT(dms_RPT),dms_PRCP_start_row+1)","v":"2014-15"},"CRCP_y2",{"$f":"INDEX(INDIRECT(dms_RPT),dms_CRCP_start_row+1)","v":"2019-20"},"FRCP_y2",{"$f":"INDEX(INDIRECT(dms_RPT),dms_FRCP_start_row+1)","v":"2024-25"}]
[null,"1989-90","1990","PRCP_y3",{"$f":"INDEX(INDIRECT(dms_RPT),dms_PRCP_start_row+2)","v":"2015-16"},"CRCP_y3",{"$f":"INDEX(INDIRECT(dms_RPT),dms_CRCP_start_row+2)","v":"2020-21"},"FRCP_y3",{"$f":"INDEX(INDIRECT(dms_RPT),dms_FRCP_start_row+2)","v":"2025-26"}]
[null,"1990-91","1991","PRCP_y4",{"$f":"INDEX(INDIRECT(dms_RPT),dms_PRCP_start_row+3)","v":"2016-17"},"CRCP_y4",{"$f":"INDEX(INDIRECT(dms_RPT),dms_CRCP_start_row+3)","v":"2021-22"},"FRCP_y4",{"$f":"INDEX(INDIRECT(dms_RPT),dms_FRCP_start_row+3)","v":"2026-27"}]
[null,"1991-92","1992","PRCP_y5",{"$f":"INDEX(INDIRECT(dms_RPT),dms_PRCP_start_row+4)","v":"2017-18"},"CRCP_y5",{"$f":"INDEX(INDIRECT(dms_RPT),dms_CRCP_start_row+4)","v":"2022-23"},"FRCP_y5",{"$f":"INDEX(INDIRECT(dms_RPT),dms_FRCP_start_row+4)","v":"2027-28"}]
[null,"1992-93","1993","PRCP_y6",{"$f":"INDEX(INDIRECT(dms_RPT),dms_PRCP_start_row+5)","v":"2018-19"},"CRCP_y6",{"$f":"INDEX(INDIRECT(dms_RPT),dms_CRCP_start_row+5)","v":"2023-24"},"FRCP_y6",{"$f":"INDEX(INDIRECT(dms_RPT),dms_FRCP_start_row+5)","v":"2028-29"}]
[null,"1993-94","1994","PRCP_y7",{"$f":"INDEX(INDIRECT(dms_RPT),dms_PRCP_start_row+6)","v":"2019-20"},"CRCP_y7",{"$f":"INDEX(INDIRECT(dms_RPT),dms_CRCP_start_row+6)","v":"2024-25"},"FRCP_y7",{"$f":"INDEX(INDIRECT(dms_RPT),dms_FRCP_start_row+6)","v":"2029-30"}]
[null,"1994-95","1995","PRCP_y8",{"$f":"INDEX(INDIRECT(dms_RPT),dms_PRCP_start_row+7)","v":"2020-21"},"CRCP_y8",{"$f":"INDEX(INDIRECT(dms_RPT),dms_CRCP_start_row+7)","v":"2025-26"},"FRCP_y8",{"$f":"INDEX(INDIRECT(dms_RPT),dms_FRCP_start_row+7)","v":"2030-31"}]
[null,"1995-96","1996","PRCP_y9",{"$f":"INDEX(INDIRECT(dms_RPT),dms_PRCP_start_row+8)","v":"2021-22"},"CRCP_y9",{"$f":"INDEX(INDIRECT(dms_RPT),dms_CRCP_start_row+8)","v":"2026-27"},"FRCP_y9",{"$f":"INDEX(INDIRECT(dms_RPT),dms_FRCP_start_row+8)","v":"2031-32"}]
[null,"1996-97","1997","PRCP_y10",{"$f":"INDEX(INDIRECT(dms_RPT),dms_PRCP_start_row+9)","v":"2022-23"},"CRCP_y10",{"$f":"INDEX(INDIRECT(dms_RPT),dms_CRCP_start_row+9)","v":"2027-28"},"FRCP_y10",{"$f":"INDEX(INDIRECT(dms_RPT),dms_FRCP_start_row+9)","v":"2032-33"}]
[null,"1997-98","1998","PRCP_y11",{"$f":"INDEX(INDIRECT(dms_RPT),dms_PRCP_start_row+10)","v":"2023-24"},"CRCP_y11",{"$f":"INDEX(INDIRECT(dms_RPT),dms_CRCP_start_row+10)","v":"2028-29"},"FRCP_y11",{"$f":"INDEX(INDIRECT(dms_RPT),dms_FRCP_start_row+10)","v":"2033-34"}]
[null,"1998-99","1999","PRCP_y12",{"$f":"INDEX(INDIRECT(dms_RPT),dms_PRCP_start_row+11)","v":"2024-25"},"CRCP_y12",{"$f":"INDEX(INDIRECT(dms_RPT),dms_CRCP_start_row+11)","v":"2029-30"},"FRCP_y12",{"$f":"INDEX(INDIRECT(dms_RPT),dms_FRCP_start_row+11)","v":"2034-35"}]
[null,"1999-00","2000","PRCP_y13",{"$f":"INDEX(INDIRECT(dms_RPT),dms_PRCP_start_row+12)","v":"2025-26"},"CRCP_y13",{"$f":"INDEX(INDIRECT(dms_RPT),dms_CRCP_start_row+12)","v":"2030-31"},"FRCP_y13",{"$f":"INDEX(INDIRECT(dms_RPT),dms_FRCP_start_row+12)","v":"2035-36"}]
[null,"2000-01","2001","PRCP_y14",{"$f":"INDEX(INDIRECT(dms_RPT),dms_PRCP_start_row+13)","v":"2026-27"},"CRCP_y14",{"$f":"INDEX(INDIRECT(dms_RPT),dms_CRCP_start_row+13)","v":"2031-32"},"FRCP_y14",{"$f":"INDEX(INDIRECT(dms_RPT),dms_FRCP_start_row+13)","v":"2036-37"}]
[null,"2001-02","2002","PRCP_y15",{"$f":"INDEX(INDIRECT(dms_RPT),dms_PRCP_start_row+14)","v":"2027-28"},"CRCP_y15",{"$f":"INDEX(INDIRECT(dms_RPT),dms_CRCP_start_row+14)","v":"2032-33"},"FRCP_y15",{"$f":"INDEX(INDIRECT(dms_RPT),dms_FRCP_start_row+14)","v":{"$error":"#REF!"}}]
[null,"2002-03","2003","PRCP_y16",{"$f":"INDEX(INDIRECT(dms_RPT),dms_PRCP_start_row+15)","v":"2028-29"},"CRCP_y16",{"$f":"INDEX(INDIRECT(dms_RPT),dms_CRCP_start_row+15)","v":"2033-34"},"FRCP_y16",{"$f":"INDEX(INDIRECT(dms_RPT),dms_FRCP_start_row+15)","v":{"$error":"#REF!"}}]
[null,"2003-04","2004"]
[null,"2004-05","2005"]
[null,"2005-06","2006",null,"CRY - FRY"]
[null,"2006-07","2007","dms_y1",{"$f":"IFERROR(INDEX(INDIRECT(dms_RPT),dms_CRY_start_row),0)","v":"2021-22"}]
[null,"2007-08","2008","dms_y2",{"$f":"IFERROR(INDEX(INDIRECT(dms_RPT),dms_CRY_start_row+1),0)","v":"2022-23"}]
[null,"2008-09","2009","dms_y3",{"$f":"IFERROR(INDEX(INDIRECT(dms_RPT),dms_CRY_start_row+2),0)","v":"2023-24"}]
[null,"2009-10",2010,"dms_y4",{"$f":"IFERROR(INDEX(INDIRECT(dms_RPT),dms_CRY_start_row+3),0)","v":"2024-25"}]
[null,"2010-11",2011,"dms_y5",{"$f":"IFERROR(INDEX(INDIRECT(dms_RPT),dms_CRY_start_row+4),0)","v":"2025-26"}]
[null,"2011-12",2012,"dms_y6",{"$f":"IFERROR(INDEX(INDIRECT(dms_RPT),dms_CRY_start_row+5),0)","v":"2026-27"}]
[null,"2012-13",2013,"dms_y7",{"$f":"IFERROR(INDEX(INDIRECT(dms_RPT),dms_CRY_start_row+6),0)","v":"2027-28"}]
[null,"2013-14",2014,"dms_y8",{"$f":"IFERROR(INDEX(INDIRECT(dms_RPT),dms_CRY_start_row+7),0)","v":"2028-29"}]
[null,"2014-15",2015,"dms_y9",{"$f":"IFERROR(INDEX(INDIRECT(dms_RPT),dms_CRY_start_row+8),0)","v":"2029-30"}]
[null,"2015-16",2016,"dms_y10",{"$f":"IFERROR(INDEX(INDIRECT(dms_RPT),dms_CRY_start_row+9),0)","v":"2030-31"}]
[null,"2016-17",2017,"dms_y11",{"$f":"IFERROR(INDEX(INDIRECT(dms_RPT),dms_CRY_start_row+10),0)","v":"2031-32"}]
[null,"2017-18",2018,"dms_y12",{"$f":"IFERROR(INDEX(INDIRECT(dms_RPT),dms_CRY_start_row+11),0)","v":"2032-33"}]
[null,"2018-19",2019,"dms_y13",{"$f":"IFERROR(INDEX(INDIRECT(dms_RPT),dms_CRY_start_row+12),0)","v":"2033-34"}]
[null,"2019-20",2020,"dms_y14",{"$f":"IFERROR(INDEX(INDIRECT(dms_RPT),dms_CRY_start_row+13),0)","v":"2034-35"}]
[null,"2020-21",2021,"dms_y15",{"$f":"IFERROR(INDEX(INDIRECT(dms_RPT),dms_CRY_start_row+14),0)","v":"2035-36"}]
[null,"2021-22",2022,"dms_y16",{"$f":"IFERROR(INDEX(INDIRECT(dms_RPT),dms_CRY_start_row+15),0)","v":"2036-37"}]
[null,"2022-23",2023]
[null,"2023-24",2024]
[null,"2024-25",2025]
[null,"2025-26",2026]
[null,"2026-27",2027]
[null,"2027-28",2028]
[null,"2028-29",2029]
[null,"2029-30",2030]
[null,"2030-31",2031]
[null,"2031-32",2032]
[null,"2032-33",2033]
[null,"2033-34",2034]
[null,"2034-35",2035]
[null,"2035-36",2036]
[null,"2036-37","2037"]

{"sheet":"AER ETL","index":3,"n_rows":145,"n_cols":8,"rows_kept":145,"cut":false,"hidden":true,"merged":[[11,0,15,0],[12,4,12,8],[14,2,14,4],[18,0,25,0],[26,0,31,0],[34,0,59,0],[34,37,34,58],[34,68,34,89],[32,37,32,58],[71,1,73,1],[32,68,32,89],[33,37,33,58],[33,68,33,89]]}
[null,"AER ETL INFORMATION"]
[]
[null,"USES NAMED RANGES FLAG","yes","dms_Defined_Names_Used"]
[]
[null,"IF THIS IS AN ABC RIN - make sure the the named range CRY is applied and the named range dms_dollar_nom_UOM is applied"]
[null,"IF THIS IS A RESET RIN - make sure the named ranges CRY and dms_dollar_nom_UOM are NOT present in the workbook"]
[null,"FOR ABC RINS THAT SPAN MULTIPLE YEARS - make sure MultiYear Flag is set and final year entered as required"]
[]
[null,"Full trading name",{"$f":"INDEX(dms_TradingNameFull_List,MATCH(dms_TradingName,dms_TradingName_List))","v":"AusNet Gas Services"},null,"dms_TradingNameFull"]
[null,"Trading name",{"$f":"dms_TradingName","v":"AusNet (Gas)"}]
["Selected here","Model / RIN","Reset","dms_Model"]
["Read from Business & other details","Source","Regulatory proposal","dms_Source"]
[null,"Data quality","Consolidated","For DB purposes this is always Consoldiated"]
[null,"Data status","Public","For DB purposes this is always Public"]
[null,"Amendment reason",{"$f":"dms_Amendment_Text","v":"."},null,null,"dms_AmendmentReason"]
[null,"Submission date",{"$f":"dms_Typed_Submission_Date","v":"2022-07-01"},"dms_SubmissionDate"]
[]
["Redundant","EBSS - First application of scheme in forthcoming period?","No"]
["Pre-populated from lookup table","Data ingestion data quality","Consolidated","dms_DataQuality","Always Consolidated"]
[null,"Sector",{"$f":"INDEX(dms_Sector_List,MATCH(dms_TradingName,dms_TradingName_List))","v":"Gas"},"dms_Sector","=INDEX(dms_Sector_List,MATCH(dms_TradingName,dms_TradingName_List))"]
[null,"Segment",{"$f":"INDEX(dms_Segment_List,MATCH(dms_TradingName,dms_TradingName_List))","v":"Distribution"},"dms_Segment","=INDEX(dms_Segment_List,MATCH(dms_TradingName,dms_TradingName_List))"]
[null,"Regulatory Year Ending",{"$f":"IF(dms_MultiYear_Flag=1,LEFT(dms_Specified_FinalYear,2)&RIGHT(dms_Specified_FinalYear,2),dms_RYE_result)","v":"2028"},"dms_RYE","=IF(dms_MultiYear_Flag=1,LEFT(dms_Specified_FinalYear,2)&RIGHT(dms_Specified_FinalYear,2),dms_RYE_result)"]
[null,"Reporting Period Type",{"$f":"INDEX(dms_RPT_List,MATCH(dms_TradingName,dms_TradingName_List))","v":"Financial"},"dms_RPT","=INDEX(dms_RPT_List,MATCH(dms_TradingName,dms_TradingName_List))"]
[null,"EB/CA Unit of Measure for Monetary Values","$0s","dms_dollar_nom_UOM","If the cover sheet is attached to an ABC RIN apply the NAMED RANGE to the cell"]
[null,"Security Classification","Public","dms_Classification","Always Public"]
[null,"Jurisdiction",{"$f":"INDEX(dms_JurisdictionList,MATCH(dms_TradingName,dms_TradingName_List))","v":"Vic"},"dms_Jurisdiction","=INDEX(dms_JurisdictionList,MATCH(dms_TradingName,dms_TradingName_List))"]
["Relevant for PTRM, RFMs and Reset RINS","$ REAL REFERENCES"]
[null,"Does the named range CRY exist in this file? ",{"$f":"IFERROR(CRY,\"NO\")","v":"NO"}]
[null,"CRY-1  (last full calendar year before CRY)",{"$f":"IFERROR(IF(dms_RPT=\"calendar\",CRY-1,LEFT(CRY,4)),\"CRY not present\")","v":"CRY not present"},"dms_Cal_Year_B4_CRY","'=IF(dms_RPT=\"financial\",VALUE(LEFT(dms_SingleYear_FinalYear_Result,4)),VALUE(LEFT(dms_SingleYear_FinalYear_Result,4)-1))"]
[null,"Dollar $ real month",{"$f":"INDEX(dms_RPTMonth_List,MATCH(dms_TradingName,dms_TradingName_List))","v":"June"},"dms_RPTMonth","=INDEX(dms_RPTMonth_List,MATCH(dms_TradingName,dms_TradingName_List))"]
[null,"Dollar $ real  (the last month before the FRCP_y1)",{"$f":"IF(dms_Model=\"RFM\",dms_DollarReal_Prev, IF(dms_SingleYearModel=\"yes\",CONCATENATE(dms_RPTMonth)&\" \"&VALUE((LEFT(dms_CRY_start_year,2)&RIGHT(dms_CRY_start_year,2))),CONCATENATE(dms_RPTMonth)&\" \"&dms_DollarReal_year))","v":"June 2023"},"dms_DollarReal","=IF(dms_Model=\"RFM\",dms_DollarReal_Prev, IF(dms_SingleYearModel=\"yes\",CONCATENATE(dms_RPTMonth)&\" \"&VALUE((LEFT(dms_CRY_start_year,2)&RIGHT(dms_CRY_start_year,2))),CONCATENATE(dms_RPTMonth)&\" \"&dms_DollarReal_year))"]
[null,"Dollar $ real previous year (PRCP_y5)","December 2017","dms_DollarReal_Prev","=IF(SUM(dms_SingleYear_Model)>0,CONCATENATE(dms_RPTMonth)&\" \"&VALUE(((LEFT(CRY,2))&RIGHT(CRY,2))-1),CONCATENATE(dms_RPTMonth)&\" \"&VALUE(((LEFT(dms_CRCP_FirstYear_Result,2)&RIGHT(dms_CRCP_FirstYear_Result,2))))-1)"]
[null,"PTRM/ RFMs"]
[null,"Form of control",{"$f":"INDEX(dms_FormControl_List,MATCH(dms_TradingName,dms_TradingName_List))","v":"Tariff cap"},"dms_FormControl","=INDEX(dms_FormControl_List,MATCH(dms_TradingName,dms_TradingName_List))"]
["All potential values for Regulatory Years or RYEs as calculated","This block works out the various RYE's for ALL RIN types and MODELS"]
[null,"dms_start_year",{"$f":"FRCP_y1","v":"2023-24"},"=FRCP_y1","FRCP_y1 from cover sheet"]
[null,"dms_CRY_start_year",{"$f":"IFERROR(CRY,CRCP_y4)","v":"2021-22"},"=IFERROR(CRY,CRCP_y4)"]
[null,"dms_CRY_start_row",{"$f":"IFERROR(MATCH(dms_CRY_start_year,INDIRECT(dms_RPT),0),0)","v":35},"=IFERROR(MATCH(dms_CRY_start_year,INDIRECT(dms_RPT),0),0)"]
[null,"dms_FRCP_start_row",{"$f":"MATCH(dms_start_year,INDIRECT(dms_RPT),0)","v":37},"=MATCH(dms_start_year,INDIRECT(dms_RPT),0)","Uses FRCP_y1 as a start reference"]
[null,"dms_CRCP_start_row",{"$f":"dms_FRCP_start_row-dms_CRCPlength_Num","v":32},"=dms_FRCP_start_row-dms_CRCPlength_Num","Uses the value in dms_CRCPlength_Num"]
[null,"dms_PRCP_start_row",{"$f":"dms_FRCP_start_row-dms_CRCPlength_Num-dms_PRCPlength_Num","v":27},"=dms_FRCP_start_row-dms_CRCPlength_Num-dms_PRCPlength_Num","Uses the value in dms_CRCPlength_Num and dms_PRCPlength_Num"]
[null,"dms_RYE_start_row",{"$f":"dms_FRCP_start_row+(dms_FRCPlength_Num-1)","v":41},"=dms_FRCP_start_row+(dms_FRCPlength_Num-1)","Uses the value in dms_FRCPlength_Num-1"]
[null,"FRCP_start_year",{"$f":"INDEX(INDIRECT(dms_RPT),dms_FRCP_start_row)","v":"2023-24"},"=INDEX(INDIRECT(dms_RPT),dms_FRCP_start_row)","Converts the FRCP start row to display the year"]
[null,"CRCP_start_year",{"$f":"INDEX(INDIRECT(dms_RPT),dms_CRCP_start_row)","v":"2018-19"},"=INDEX(INDIRECT(dms_RPT),dms_CRCP_start_row)","Converts the CRCP start row to display the year"]
[null,"PRCP_start_year",{"$f":"INDEX(INDIRECT(dms_RPT),dms_PRCP_start_row)","v":"2013-14"},"=INDEX(INDIRECT(dms_RPT),dms_PRCP_start_row)","Converts the PRCP start row to display the year"]
[null,"FRCP_final_year",{"$f":"INDEX(INDIRECT(dms_RPT),dms_FRCP_start_row+dms_FRCPlength_Num-1)","v":"2027-28"},"=INDEX(INDIRECT(dms_RPT),dms_FRCP_start_row+dms_FRCPlength_Num-1)","Finds the FRCP final year"]
[null,"CRCP_final_year",{"$f":"INDEX(INDIRECT(dms_RPT),dms_CRCP_start_row+dms_CRCPlength_Num-1)","v":"2022-23"},"=INDEX(INDIRECT(dms_RPT),dms_CRCP_start_row+dms_CRCPlength_Num-1)","Finds the CRCP final year"]
[null,"PRCP_final_year",{"$f":"INDEX(INDIRECT(dms_RPT),dms_PRCP_start_row+dms_FRCPlength_Num-1)","v":"2017-18"},"=INDEX(INDIRECT(dms_RPT),dms_PRCP_start_row+dms_FRCPlength_Num-1)","Finds the PRCP final year"]
[null,"dms_Reset_final_year",{"$f":"INDEX(INDIRECT(dms_RPT),dms_RYE_start_row)","v":"2027-28"},"=INDEX(INDIRECT(dms_RPT),dms_RYE_start_row)","For Resets and PTRM/RFMs (same as FRCP_final_year)"]
[null,"dms_SpecifiedYear_final_year",{"$f":"FRY","v":"2027-28"},"=FRY","FRY from cover sheet"]
[null,"dms_DollarReal_year",{"$f":"LEFT(CRCP_final_year,2)&RIGHT(CRCP_final_year,2)","v":"2023"},"=LEFT(CRCP_final_year,2)&RIGHT(CRCP_final_year,2)","Uses the value in CRCP_final_year"]
[null,"dms_Previous_DollarReal_year",{"$f":"LEFT(PRCP_final_year,2)&RIGHT(PRCP_final_year,2)","v":"2018"},"=LEFT(PRCP_final_year,2)&RIGHT(PRCP_final_year,2)","Uses the value in PRCP_final_year"]
[null,"dms_CRY_RYE",{"$f":"IFERROR(LEFT(CRY,2)&RIGHT(CRY,2),0)","v":0},"=IFERROR(LEFT(CRY,2)&RIGHT(CRY,2),0)","For ABC single year RINS"]
[null,"dms_Reset_RYE",{"$f":"IF(dms_Model_Span>1,IF(dms_Model=\"RFM\",(LEFT(dms_DollarReal_year,2)&RIGHT(dms_DollarReal_year,2)),(LEFT(dms_Reset_final_year,2)&RIGHT(dms_Reset_final_year,2))),0)","v":"2028"},"=IF(dms_Model_Span>1,IF(dms_Model=\"RFM\",(LEFT(dms_DollarReal_year,2)&RIGHT(dms_DollarReal_year,2)),(LEFT(dms_Reset_final_year,2)&RIGHT(dms_Reset_final_year,2))),0)","If model span > 1 then uses dms_Reset_RYE otherwise it's a multi year ABC and uses dms_Specified_RYE"]
[null,"dms_Specified_RYE",{"$f":"IF(dms_MultiYear_ResponseFlag=\"Yes\",(LEFT(dms_Specified_FinalYear,2)&RIGHT(dms_Specified_FinalYear,2)),0)","v":0},"=IF(dms_MultiYear_ResponseFlag=\"Yes\",(LEFT(dms_Specified_FinalYear,2)&RIGHT(dms_Specified_FinalYear,2)),0)","If multi year ABC - uses dms_Specified_FinalYear"]
[null,"dms_Model_Span",{"$f":"INDEX(dms_Model_Span_List,MATCH(dms_Model,dms_Model_List))","v":5},"=INDEX(dms_Model_Span_List,MATCH(dms_Model,dms_Model_List))","A result of 5 is used to signify that it is more than 1 year span"]
[null,"dms_RYE_result",{"$f":"IF(dms_MultiYear_ResponseFlag=\"yes\",dms_Specified_RYE,(IF(dms_Model_Span>1,dms_Reset_RYE,dms_CRY_RYE)))","v":"2028"},"=IF(dms_MultiYear_ResponseFlag=\"yes\",dms_Specified_RYE,(IF(dms_Model_Span>1,dms_Reset_RYE,dms_CRY_RYE)))","Nested IF - feeds into dms_RYE"]
[null,"dms_Reset_Span",{"$f":"IF(dms_Reset_RYE>0,CONCATENATE(FRCP_y1,\" to \",FRCP_final_year),0)","v":"2023-24 to 2027-28"},"=IF(dms_Reset_RYE>0,CONCATENATE(FRCP_y1,\" to \",FRCP_final_year),0)","Reset span of years as text"]
[null,"dms_SpecifiedYear_Span",{"$f":"IF(dms_Specified_RYE>0,CONCATENATE(CRY,\" to \",dms_Specified_FinalYear),0)","v":0},"=IF(dms_Specified_RYE>0,CONCATENATE(CRY,\" to \",dms_Specified_FinalYear),0)","Multi year ABC span of years as text"]
[null,"dms_Header_Span",{"$f":"IF(dms_MultiYear_Flag=1,dms_SpecifiedYear_Span,IF(dms_Model_Span>1,dms_y1&\" to \"&FRCP_final_year,CRY))","v":"2021-22 to 2027-28"},"=IF(dms_MultiYear_Flag=1,dms_SpecifiedYear_Span,IF(dms_Model_Span>1,dms_Reset_Span,CRY))","NESTED IF - for Sheet Headers"]
[null,"ABC RINS THAT SPAN MULTIPLE YEARS"]
[null,"This is a multi year ABC RIN?","No"]
[null,null,{"$f":"IF(dms_MultiYear_ResponseFlag=\"No\",0,1)","v":0},"dms_MultiYear_Flag","This is set from the answer provided above"]
[null,null,{"$f":"IF(dms_MultiYear_Flag=1,FRY,\"not a Multiple year submission\")","v":"not a Multiple year submission"},"dms_Specified_FinalYear","The result here is returned to dms_CRCP_FinalYear_Result if response to Q in C73 is \"yes\" and dms_MultiYear_Flag is set to 1"]
[null," Start year for 5.2 in Multi year ABC RINS",{"$f":"IFERROR(IF(dms_MultiYear_Flag=1,FRY,CRY),\"not an ABC\")","v":"not an ABC"},"dms_0502_Inst_Year","=IF(dms_MultiYear_Flag=1,FRY,CRY)",null,"For single year RINS this is CRY - multi year RINS need to start a the end of the span of years (ie. FRY)"]
[null,"WHAT IS THE RYE?"]
[null,"Reg Period Lengths"]
[null,"PRCP length in years",{"$f":"INDEX(dms_PRCPlength_List,MATCH(dms_TradingName,dms_TradingName_List))","v":5},"dms_PRCPlength_Num","=INDEX(dms_PRCPlength_List,MATCH(dms_TradingName,dms_TradingName_List))"]
[null,"CRCP length in years",{"$f":"INDEX(dms_CRCPlength_List,MATCH(dms_TradingName,dms_TradingName_List))","v":5},"dms_CRCPlength_Num","=INDEX(dms_CRCPlength_List,MATCH(dms_TradingName,dms_TradingName_List))"]
[null,"FRCP length in years",{"$f":"INDEX(dms_FRCPlength_List,MATCH(dms_TradingName,dms_TradingName_List))","v":5},"dms_FRCPlength_Num","=INDEX(dms_FRCPlength_List,MATCH(dms_TradingName,dms_TradingName_List))"]
[null,"Single year RIN?"]
[null,"Single Year ABC RIN ?",{"$f":"IF(dms_Model=\"EB\",1,0)","v":0},"dms_EB"]
[null,null,{"$f":"IF(dms_Model=\"CA\",1,0)","v":0},"dms_CA","=dms_SingleYear_Model"]
[null,null,{"$f":"IF(dms_Model=\"ARR\",1,0)","v":0},"dms_ARR"]
[null,"Is this a single Year ABC RIN?",{"$f":"IF(SUM(dms_SingleYear_Model)=1,\"yes\",\"no\")","v":"no"},"dms_SingleYearModel","=IF(SUM(dms_SingleYear_Model)=1,\"yes\",\"no\")"]
[null,"Single Year Final Year Result",{"$f":"IF(AND(dms_SingleYearModel=\"yes\",dms_MultiYear_Flag=0),CRY,0)","v":0},"dms_SingleYear_FinalYear_Result","=IFERROR(IF(SUM(dms_SingleYear_Model)<>0,(INDIRECT(dms_SingleYear_FinalYear_Ref)),\"not a single year RIN\"),\"CRY not present\")"]
[null,"Multi year RIN?"]
[]
[null,"Multi Year Reset/Model?",{"$f":"IF(dms_Model_Span>1,\"yes\",\"no\")","v":"yes"}]
[null,"Final year result for Reset/Model",{"$f":"IF(dms_Model_Span>1,dms_Reset_final_year,0)","v":"2027-28"},"dms_MultiYear_FinalYear_Result","dms_CRCP_FinalYear_Result"]
[]
[null,"Multi Year ABC RIN?",{"$f":"IF(dms_MultiYear_Flag=1,\"yes\",\"no\")","v":"no"},"dms_MultiYear_ABC_RIN"]
[null,"Final year result for ABC multi year",{"$f":"IF(dms_MultiYear_Flag=1,C50,0)","v":0}]
[]
[null,"EB RINS"]
[null,"Calendar Year for table 3.6 data",{"$f":"IFERROR(IF(dms_Segment=\"Transmission\",dms_Cal_Year_B4_CRY,CRY),\"CRY not present\")","v":"CRY not present"},"dms_0306_Year","=IF(dms_Segment=\"Transmission\",dms_Cal_Year_B4_CRY,CRY)"]
[null,"CA RINS"]
[null,"Find how many rows in tables 6.3 sustained interruptions?",null,null,"dms_060301_MaxRows only returns a valid value when cover sheet is attached to a CA file"]
[null,null,{"$f":"IF(dms_Model<>\"CA\",\"not a CA\",\"Is a CA\")","v":"not a CA"},null,"=IF(dms_Model<>\"CA\",\"not a CA\",\"Is a CA\")"]
[null,"dms_060301_Avg_Duration_Sustained_Int_Values present?",{"$f":"IFERROR(IF(INDEX(dms_060301_Avg_Duration_Sustained_Int_Values,1,1)<>\"\",\"yes\",\"no\"),\"no\")","v":"no"},"dms_060301_checkvalue","=IFERROR(IF(INDEX(dms_060301_Avg_Duration_Sustained_Int_Values,1,1)<>\"\",\"yes\",\"no\"),\"no\")"]
[null,null,{"$f":"IF(AND(dms_Model=\"CA\",(dms_060301_checkvalue=\"no\")),\"error - NR not present\",\"no errors\")","v":"no errors"},null,"=IF(AND(dms_Model=\"CA\",(dms_060301_checkvalue=\"no\")),\"error - NR not present\",\"no errors\")"]
[null,"Table 6.3.1 - last row reference",{"$f":"IFERROR(IF(dms_Model=\"CA\",LOOKUP(2,1/(dms_060301_Avg_Duration_Sustained_Int_Values<>\"\"),(ROW(dms_060301_Avg_Duration_Sustained_Int_Values))),\"not a CA\"),\"6.3 not present\")","v":"not a CA"},"dms_060301_LastRow","=IFERROR(IF(dms_Model=\"CA\",LOOKUP(2,1/(dms_060301_Avg_Duration_Sustained_Int_Values<>\"\"),(ROW(dms_060301_Avg_Duration_Sustained_Int_Values))),\"not a CA\"),\"6.3 not present\")"]
[null,"Table 6.3.1 - max number rows",{"$f":"IFERROR(IF(dms_Model=\"CA\",(dms_060301_LastRow-15),\"not a CA\"),\"error\")","v":"not a CA"},"dms_060301_MaxRows","=IFERROR(IF(dms_Model=\"CA\",(dms_060301_LastRow-15),\"not a CA\"),\"error\")"]
[null,"Table 6.6.3 - Public lighting repair - no. business days",{"$f":"INDEX(dms_663_List,MATCH(dms_TradingName,dms_TradingName_List))","v":"-"},"dms_663","=INDEX(dms_663_List,MATCH(dms_TradingName,dms_TradingName_List))"]
[null,"ARR or RESET RINS"]
[null,"How many rows in tables 6.1 or 6.7?  (leap year?)","insert dms_LeapYear NR if required",null,"'dms_LeapYear is used to determine dms_060701_Max_Rows BUT it is only found on worksheet 6.1 or 6.7 and the date value in the cell is used to determine whether it is a leap year"]
[null,"Is dms_LeapYear named range present?",{"$f":"IFERROR(IF(dms_LeapYear,\"yes\"),\"no\")","v":"no"}]
[null,"Table 6.7.1 - includes a leap year?",{"$f":"\nIFERROR(IF(MONTH(DATE(YEAR(dms_LeapYear),2,29))=2,\"is a leap year\",\"not a leap year\"),\n\"dms_LeapYear not present\")","v":"dms_LeapYear not present"},"dms_LeapYear_Result","=IFERROR(IF(MONTH(DATE(YEAR(dms_LeapYear),2,29))=2,\"is a leap year\",\"not a leap year\"),\"dms_LeapYear not present\")"]
[null,"MaxRows if Reset and leap year",{"$f":"IF(dms_LeapYear_Result=\"is a leap year\",1827,1826)","v":1826},"dms_060701_Reset_MaxRows","=IF(dms_LeapYear_Result=\"is a leap year\",1827,1826)",null,null,"number of days present in Reset RIN table"]
[null,"MaxRows if ARR and leap year",{"$f":"IF(dms_LeapYear_Result=\"is a leap year\",366,365)","v":365},"dms_060701_ARR_MaxRows","=IF(dms_LeapYear_Result=\"is a leap year\",366,365)",null,null,"number of days present in ARR RIN table"]
[null,"Table 6.7.1 - Max Rows (leap year/ non leap year)",{"$f":"IF(dms_Model=\"ARR\",dms_060701_ARR_MaxRows,IF(dms_Model=\"Reset\",dms_060701_Reset_MaxRows,\"not a relevant RIN type\"))","v":1826},"dms_060701_MaxRows","=IF(dms_Model=\"ARR\",dms_060701_ARR_MaxRows,IF(dms_Model=\"Reset\",dms_060701_Reset_MaxRows,\"not a relevant RIN type\"))"]
[null,"How many columns in 6.7?   (4 or 5 feeder categories)",{"$f":"IF(dms_FifthFeeder_flag_NSP=\"NO\",\"This NSP has only 4 feeder categories\",\"This NSP has 5 feeder categories\")","v":"This NSP has only 4 feeder categories"}]
[null,"Table 6.7.1 - Last column (# of feeder categories > 4)",{"$f":"IF(dms_FifthFeeder_flag_NSP=\"NO\",10,12)","v":10},"dms_060701_MaxCols","=IF(dms_FifthFeeder_flag_NSP=\"NO\",8,10)"]
[null,"Table 6.7.1 - Number of offset rows",{"$f":"IF(dms_Model=\"ARR\",15,9)","v":9},"dms_060701_OffsetRows","=IF(dms_Model=\"ARR\",15,9)"]
[null,"Start date for telephone answering in 6.1 or 6.7?",null,null,"Using 060101 as naming standard not 060701 for start dates"]
[null,"Table 6.1.1 and 6.7.1 - Start Date as Text",{"$f":"IF(dms_SingleYearModel=\"yes\",(CONCATENATE(IF(LEN(CRY)=4,\"1-Jan-\",\"1-Jul-\"),LEFT(CRY,4))),(CONCATENATE(IF(LEN(PRCP_y4)=4,\"1-Jan-\",\"1-Jul-\"),LEFT(PRCP_y4,4))))","v":"1-Jul-2016"},"dms_060101_StartDateTxt","=IF(SUM(dms_SingleYear_Model)>1,(CONCATENATE(IF(LEN(CRY)=4,\"1-Jan-\",\"1-Jul-\"),LEFT(CRY,4))),(CONCATENATE(IF(LEN(CRCP_y4)=4,\"1-Jan-\",\"1-Jul-\"),LEFT(CRCP_y4,4))))"]
[null,"Table 6.1.1 and 6.7.1 - Start Date as Date Value",{"$f":"DATEVALUE(dms_060701_StartDateTxt)","v":42552},"dms_060101_StartDateVal","=DATEVALUE(dms_060701_StartDateTxt)"]
[null,"ARRs"]
[null,"How many rows in table 6.8?","insert dms_060801_StartCell NR if required",null,"dms_060801_StartCell is only found on worksheet 6.8 and is used to determine the starting date for the date range"]
[null,"Is dms_060801_StartCell named range present?",{"$f":"IFERROR(IF((ROW(dms_060801_StartCell)-1)=1,\"yes\",\"yes\"),\"no\")","v":"no"},"Must be present for ARRs","=IFERROR(IF((ROW(dms_060801_StartCell)-1)=1,\"yes\",\"yes\"),\"no\")"]
[null,"Table 6.8 - Number of offset rows",12,"dms_0608_OffsetRows","=IFERROR(IF(dms_Model=\"ARR\",(ROW(dms_060801_StartCell)-1),\"not an ARR\"),\"6.8 error\")"]
[null,"Table 6.8 - Last row",{"$f":"IFERROR(IF(dms_060801_StartCell<>\"\",IF(dms_Model=\"ARR\",(LOOKUP(2,1/(dms_060801_01_Values<>\"\"),(ROW(dms_060801_01_Values)))),\"not an ARR\"),0),\"0\")","v":"0"},"dms_0608_LastRow","=IFERROR(IF(dms_060801_StartCell<>\"\",IF(dms_Model=\"ARR\",(LOOKUP(2,1/(dms_060801_01_Values<>\"\"),(ROW(dms_060801_01_Values)))),\"not an ARR\"),0),\"0\")"]
[null,"Table 6.8 - MaxRows",{"$f":"IFERROR(IF(dms_Model=\"ARR\",(MAX(0,dms_0608_LastRow-dms_0608_OffsetRows)),\"not an ARR\"),\"0\")","v":"not an ARR"},"dms_060801_MaxRows","=IFERROR(IF(dms_Model=\"ARR\",(MAX(0,dms_0608_LastRow-dms_0608_OffsetRows)),\"not an ARR\"),\"0\")"]
[null,"TNSP RESET RINS"]
[null,"Table 7.9.4 only appears in TNSPs Reset RIN"]
[null,"Table 7.9.4 - first year",{"$f":"LEFT(PRCP_y3,4)","v":"2015"},"dms_070904_Start_Year","=LEFT(PRCP_y3,4)"]
[]
[null,"MISC"]
[null,"Distribution Determination Reference",{"$f":"INDEX(dms_DeterminationRef_List,MATCH(dms_TradingName,dms_TradingName_List))","v":"-"},"dms_DeterminationRef"]
[null,"Public lighting NSP?",{"$f":"INDEX(dms_Public_Lighting_List,MATCH(dms_TradingName,dms_TradingName_List))","v":"NO"},"dms_Public_Lighting","=INDEX(dms_Public_Lighting_List,MATCH(dms_TradingName,dms_TradingName_List))"]
[null,"CBD Feeder for this business",{"$f":"INDEX(dms_CBD_flag,MATCH(dms_TradingName,dms_TradingName_List))","v":"NO"},"dms_CBD_flag_NSP"]
[null,"Urban Feeder for this business",{"$f":"INDEX(dms_Urban_flag,MATCH(dms_TradingName,dms_TradingName_List))","v":"NO"},"dms_Urban_flag_NSP"]
[null,"Short rural Feeder for this business",{"$f":"INDEX(dms_ShortRural_flag,MATCH(dms_TradingName,dms_TradingName_List))","v":"NO"},"dms_ShortRural_flag_NSP"]
[null,"Long rural Feeder for this business",{"$f":"INDEX(dms_LongRural_flag,MATCH(dms_TradingName,dms_TradingName_List))","v":"NO"},"dms_LongRural_flag_NSP"]
[null,"Fifth Feeder Category (eg. TasNetworks (D))",{"$f":"INDEX(dms_FeederType_5_flag,MATCH(dms_TradingName,dms_TradingName_List))","v":"NO"},"dms_FifthFeeder_flag_NSP","=INDEX(dms_FeederType_5_flag,MATCH(dms_TradingName,dms_TradingName_List))"]
[]
[null,"DISCARD FILES"]
[null,"discard this record?","NO","dms_DISCARD","If record is to be discarded from DB set this flag to YES"]
[]
[null,"SUBSET FILES"]
[null,"Is this Submission File a Subset File","NO","dms_Partial"]
[]
[]
[null,"REGULATORY YEARS FOR MULTI RYE SUBMISSIONS"]
[null,"Multiple RYE flag","NO","dms_Multi_RYE_flag"]
[null,null,"Manually specify RYE","Named ranges to apply"]
[null,null,2013,"dms_RYE_01"]
[null,null,2014,"dms_RYE_02"]
[null,null,2015,"dms_RYE_03"]
[null,null,2016,"dms_RYE_04"]
[null,null,2017,"dms_RYE_05"]
[null,null,2018,"dms_RYE_06"]
[null,null,2019,"dms_RYE_07"]
[null,null,2020,"dms_RYE_08"]
[null,null,2021,"dms_RYE_09"]

{"sheet":"Instructions","index":4,"n_rows":27,"n_cols":4,"rows_kept":27,"cut":false,"hidden":false,"merged":[[7,1,8,1],[7,2,7,3],[8,2,8,4],[1,1,1,4],[2,1,2,4],[3,1,3,4],[4,1,4,4],[5,2,5,4],[18,1,24,1],[18,2,18,4],[26,2,26,4],[10,2,10,4],[12,1,14,1],[12,2,12,4],[13,2,13,3],[14,2,14,4],[16,2,16,4]]}
[]
[null,{"$f":"CONCATENATE(dms_Sector,\" \",dms_Segment,\" \", \"Pipeline Service Provider\")","v":"Gas Distribution Pipeline Service Provider"}]
[null,{"$f":"IF(dms_Model=\"Reset\",\"Regulatory Proposal RIN Template\",\"Annual Reporting RIN\")","v":"Regulatory Proposal RIN Template"}]
[]
[null,"INSTRUCTIONS"]
[null,"GENERAL","Complete the Business & other details worksheet before entering data or values in any other worksheets. The Business & other details worksheet is linked to other worksheets within the workbook and automatically generates certain column headings and conditional formatting."]
[]
[null,"CONFIDENTIAL INFORMATION","\nPlease use the macro at the top of each \nworksheet to identify confidential information\nin the confidential workbook. \n\n"]
[null,null,"-Do this by selecting the cell or cells that contain confidential information and then run the Mark selection as CONFIDENTIAL macro. This will format the cells a specific colour that is identified by the AER's database which in turn marks that information as confidential.\n\n-To reverse this, select the cell or cells and run the Return selection to NON-CONFIDENTIAL macro."]
[]
[null,"RESPONSES","\nPlease return two (2) files to the AER: \n\n1. A confidential version which must contain a complete set of all responses with confidential information marked using the Mark selection CONFIDENTIAL macro and which has been completed using the locked template file provided by the AER. \n\n2. A public version with confidential information either removed completely or aggregated in some form together with writtten consent to disclose the public version of the response.\n\nUse the drop down box on the Business and other details worksheet to identify the file as either confidential ('consolidated') or public. "]
[]
[null,"AMENDMENTS","\nIf an NSP wishes to correct data previously submitted to the AER it should resubmit that data using the original completed submission as the starting point. Please make any necessary changes to the data. Data that is not being amended should be left unchanged. \n\nNSPs must identify the reason for the amendments in the Amendment Reason box on the  Business and other details worksheet. NSPs may provide further details regarding any amendments in the Amendments worksheet. \n\n."]
[null,null,"NSP may use Amended Data macro \nto highlight cells that contain amended data.\nNB: if data is also CONFIDENTIAL, re-apply \nthe Confidentiality macro after applying the \nAmended macro"]
[null,null,"Please resubmit two (2) files - a confidential version and a public version of the amended submission to the AER"]
[]
[null,"UNITS OF MEASURE","\nAll amounts are to be unrounded and reported on a one for one basis: that is 1000 is to be entered as '1000'. Applicable units of measure may be identified in the table column headings or row descriptors.\n\n"]
[]
[null,"INPUT / NON-INPUT CELLS"]
[null,null,null,"Yellow = Input cell (mandatory)"]
[null,null,null,"Darker yellow = input cell (mandatory)"]
[null,null,null,"Orange = input cell (if data available)"]
[null,null,null,"Grey = Not applicable/No inputs required"]
[null,null,null," \nPLEASE DO NOT ENTER TEXT into cells that are to contain numeric data."]
[]
[]
[null,"NAVIGATION","\nMany tables in the worksheets have been \"grouped\" to allow for easy navigation. To ungroup or group data use the outline symbols in the left margin (for Row groupings) or above the columns (for column groupings). \n\n\n\n"]

{"sheet":"CONTENTS","index":5,"n_rows":37,"n_cols":4,"rows_kept":37,"cut":false,"hidden":false,"merged":[]}
[null,{"$f":"INDEX(dms_Worksheet_List,MATCH(dms_Model,dms_Model_List))","v":"REGULATORY REPORTING STATEMENT"}]
[null,{"$f":"dms_TradingName","v":"AusNet (Gas)"}]
[null,{"$f":"dms_Header_Span","v":"2021-22 to 2027-28"}]
[]
[]
[]
[null,null,"CONTENTS"]
[]
[null,null,"TEMPLATE DATE","FINAL RIN MARCH 2022"]
[]
[null,null,"SUBMISSION","Business & other details"]
[]
[null,null,"EXPENDITURE","E1. Expenditure Summary"]
[null,null,null,"E2. Mains Repex"]
[null,null,null,"E3. Mains Augex"]
[null,null,null,"E4. Meter replacement"]
[null,null,null,"E5. New Connections"]
[null,null,null,"E6. Non-network"]
[null,null,null,"E10. Overheads"]
[null,null,null,"E12. ICT"]
[null,null,null,"E13. Other capex"]
[null,null,null,"E17. Step changes"]
[null,null,null,"E20. Opex"]
[null,null,null,"E21. ARS"]
[null,null,null,"E25. Escalators"]
[]
[null,null,"NETWORK","N1. Demand"]
[null,null,null,"N2. Network characteristcs"]
[]
[null,null,"SERVICE","S1.1. Customer numbers - by customer type"]
[null,null,null,"S1.2. Customer numbers - by tariff"]
[null,null,null,"S10. Supply Quality"]
[null,null,null,"S11. Network reliability"]
[]
[null,null,"FINANCIAL","F3. Revenue"]
[]
[null,null,"ADMIN","Additional disclosures"]

{"sheet":"Business & other details","index":6,"n_rows":76,"n_cols":79,"rows_kept":76,"cut":false,"hidden":false,"merged":[[0,7,2,15],[3,21,3,57],[6,21,6,75],[8,16,8,93],[15,21,15,35],[15,37,15,58],[16,21,16,35],[16,37,16,48],[22,21,22,35],[22,37,22,58],[22,60,22,66],[22,68,22,89],[23,21,23,35],[23,37,23,58],[23,60,23,66],[23,68,23,89],[24,21,24,35],[24,37,24,51],[24,60,24,66],[24,68,24,82],[25,21,25,35],[25,37,25,40],[25,49,25,51],[25,60,25,66],[25,68,25,71],[25,80,25,82],[31,21,31,35],[31,37,31,58],[31,60,31,66],[31,68,31,89],[32,21,32,35],[32,37,32,58],[32,60,32,66],[32,68,32,89],[33,21,33,35],[33,37,33,58],[33,60,33,66],[33,68,33,89],[41,25,41,34],[41,37,41,44],[41,46,41,53],[41,55,41,62],[41,64,41,71],[41,73,41,80],[42,37,42,44],[42,46,42,53],[42,55,42,62],[42,64,42,71],[42,73,42,80],[43,37,43,44],[43,46,43,53],[43,55,43,62],[43,64,43,71],[43,73,43,80],[47,25,47,34],[47,37,47,44],[47,46,47,53],[47,55,47,62],[47,64,47,71],[47,73,47,80],[45,25,45,34],[48,37,48,44],[48,46,48,53],[48,55,48,62],[48,64,48,71],[48,73,48,80],[49,37,49,44],[49,46,49,53],[49,55,49,62],[49,64,49,71],[49,73,49,80],[51,25,51,34],[51,37,51,44],[51,46,51,53],[51,55,51,62],[51,64,51,71],[51,73,51,80],[52,37,52,44],[52,46,52,53],[52,55,52,62],[52,64,52,71],[52,73,52,80],[53,37,53,44],[53,46,53,53],[53,55,53,62],[53,64,53,71],[53,73,53,80],[55,25,55,34],[55,37,55,44],[57,25,57,34],[57,37,57,44],[63,25,63,34],[63,37,63,52],[71,25,73,34],[71,37,73,81],[75,25,75,34],[75,37,75,52],[65,25,65,34],[65,37,65,52],[67,25,67,34],[67,37,67,52],[69,25,69,34],[69,37,69,52]]}
[null,null,null,null,null,null,null,null,null,null,null,null,null,null,null,null,null,null,null,null,null,{"$f":"INDEX(dms_Worksheet_List,MATCH(dms_Model,dms_Model_List))","v":"REGULATORY REPORTING STATEMENT"}]
[null,null,null,null,null,null,null,null,null,null,null,null,null,null,null,null,null,null,null,null,null,{"$f":"dms_TradingName","v":"AusNet (Gas)"}]
[null,null,null,null,null,null,null,null,null,null,null,null,null,null,null,null,null,null,null,null,null,{"$f":"dms_Header_Span","v":"2021-22 to 2027-28"}]
[null,null,null,null,null,null,null,null,null,null,null,null,null,null,null,null,null,null,null,null,null,"BUSINESS & OTHER DETAILS"]
[]
[null,null,null,null,null,null,null,null,null,null,null,null,null,null,null,null,null,null,null,null,null,"INSTRUCTIONS"]
[null,null,null,null,null,null,null,null,null,null,null,null,null,null,null,null,null,null,null,null,null,"Complete the following business details regulatory template before entering data or values in any other regulatory template. This regulatory template is linked to other cells within the spreadsheet and automatically generates column headings and conditional formatting to distinguish business specific input and non-input cells. "]
[]
[null,null,null,null,null,null,null,null,null,null,null,null,null,null,null,null,"SUBMISSION PARTICULARS INPUT SHEET"]
[]
[]
[null,null,null,null,null,null,null,null,null,null,null,null,null,null,null,null,null,null,null,null,null,"ENTITY DETAILS"]
[]
[null,null,null,null,null,null,null,null,null,null,null,null,null,null,null,null,null,null,null,null,null,"Business Name"]
[]
[null,null,null,null,null,null,null,null,null,null,null,null,null,null,null,null,null,null,null,null,null,"Short name",null,null,null,null,null,null,null,null,null,null,null,null,null,null,null,"AusNet (Gas)"]
[null,null,null,null,null,null,null,null,null,null,null,null,null,null,null,null,null,null,null,null,null,"ACN/ABN",null,null,null,null,null,null,null,null,null,null,null,null,null,null,null,{"$f":"INDEX(dms_ABN_List,MATCH(dms_TradingName,dms_TradingName_List))","v":"086015036"}]
[]
[]
[]
[null,null,null,null,null,null,null,null,null,null,null,null,null,null,null,null,null,null,null,null,null,"Business Address",null,null,null,null,null,null,null,null,null,null,null,null,null,null,null,null,null,null,null,null,null,null,null,null,null,null,null,null,null,null,null,null,null,null,null,null,null,null,null,null,null,null,null,null,null,null,"Postal Address"]
[]
[null,null,null,null,null,null,null,null,null,null,null,null,null,null,null,null,null,null,null,null,null,"Address 1",null,null,null,null,null,null,null,null,null,null,null,null,null,null,null,{"$f":"INDEX(dms_Addr1_List,MATCH(dms_TradingName,dms_TradingName_List))","v":"Level 31"},null,null,null,null,null,null,null,null,null,null,null,null,null,null,null,null,null,null,null,null,null,null,"Address 1"]
[null,null,null,null,null,null,null,null,null,null,null,null,null,null,null,null,null,null,null,null,null,"Address 2",null,null,null,null,null,null,null,null,null,null,null,null,null,null,null,{"$f":"IF(ISBLANK(INDEX(dms_Addr2_List,MATCH(dms_TradingName,dms_TradingName_List))),\"\",(INDEX(dms_Addr2_List,MATCH(dms_TradingName,dms_TradingName_List))))","v":"2 Southbank Boulevard"},null,null,null,null,null,null,null,null,null,null,null,null,null,null,null,null,null,null,null,null,null,null,"Address 2"]
[null,null,null,null,null,null,null,null,null,null,null,null,null,null,null,null,null,null,null,null,null,"Suburb",null,null,null,null,null,null,null,null,null,null,null,null,null,null,null,{"$f":"INDEX(dms_Suburb_List,MATCH(dms_TradingName,dms_TradingName_List))","v":"SOUTHBANK"},null,null,null,null,null,null,null,null,null,null,null,null,null,null,null,null,null,null,null,null,null,null,"Suburb"]
[null,null,null,null,null,null,null,null,null,null,null,null,null,null,null,null,null,null,null,null,null,"State",null,null,null,null,null,null,null,null,null,null,null,null,null,null,null,{"$f":"INDEX(dms_State_List,MATCH(dms_TradingName,dms_TradingName_List))","v":"Vic"},null,null,null,null,null,null,null,null,null,"Post code",null,{"$f":"INDEX(dms_PostCode_List,MATCH(dms_TradingName,dms_TradingName_List))","v":3008},null,null,null,null,null,null,null,null,null,null,"State",null,null,null,null,null,null,null,{"$f":"INDEX(dms_PState_List,MATCH(dms_TradingName,dms_TradingName_List))","v":"Vic"},null,null,null,null,null,null,null,null,null,"Post code"]
[]
[null,null,null,null,null,null,null,null,null,null,null,null,null,null,null,null,null,null,null,null,null,null,null,null,null,null,null,null,null,null,null,null,null,null,null,null,null,null,null,null,null,null,null,null,null,null,null,null,null,null,null,null,"`"]
[]
[null,null,null,null,null,null,null,null,null,null,null,null,null,null,null,null,null,null,null,null,null,"Contact Names"]
[]
[null,null,null,null,null,null,null,null,null,null,null,null,null,null,null,null,null,null,null,null,null,"Name",null,null,null,null,null,null,null,null,null,null,null,null,null,null,null,null,null,null,null,null,null,null,null,null,null,null,null,null,null,null,null,null,null,null,null,null,null,null,"Name"]
[null,null,null,null,null,null,null,null,null,null,null,null,null,null,null,null,null,null,null,null,null,"Phone",null,null,null,null,null,null,null,null,null,null,null,null,null,null,null,null,null,null,null,null,null,null,null,null,null,null,null,null,null,null,null,null,null,null,null,null,null,null,"Phone"]
[null,null,null,null,null,null,null,null,null,null,null,null,null,null,null,null,null,null,null,null,null,"Email",null,null,null,null,null,null,null,null,null,null,null,null,null,null,null,null,null,null,null,null,null,null,null,null,null,null,null,null,null,null,null,null,null,null,null,null,null,null,"Email"]
[]
[]
[]
[]
[null,null,null,null,null,null,null,null,null,null,null,null,null,null,null,null,"REGULATORY CONTROL PERIODS"]
[]
[]
[null,null,null,null,null,null,null,null,null,null,null,null,null,null,null,null,null,null,null,null,null,null,null,null,null,"Forthcoming period",null,null,null,null,null,null,null,null,null,null,null,"2023-24",null,null,null,null,null,null,null,null,{"$f":"FRCP_y2","v":"2024-25"},null,null,null,null,null,null,null,null,{"$f":"FRCP_y3","v":"2025-26"},null,null,null,null,null,null,null,null,{"$f":"FRCP_y4","v":"2026-27"},null,null,null,null,null,null,null,null,{"$f":"FRCP_y5","v":"2027-28"}]
[null,null,null,null,null,null,null,null,null,null,null,null,null,null,null,null,null,null,null,null,null,null,null,null,null,null,null,null,null,null,null,null,null,null,null,null,null,{"$f":"FRCP_y6","v":"2028-29"},null,null,null,null,null,null,null,null,{"$f":"FRCP_y7","v":"2029-30"},null,null,null,null,null,null,null,null,{"$f":"FRCP_y8","v":"2030-31"},null,null,null,null,null,null,null,null,{"$f":"FRCP_y9","v":"2031-32"},null,null,null,null,null,null,null,null,{"$f":"FRCP_y10","v":"2032-33"}]
[null,null,null,null,null,null,null,null,null,null,null,null,null,null,null,null,null,null,null,null,null,null,null,null,null,null,null,null,null,null,null,null,null,null,null,null,null,{"$f":"FRCP_y11","v":"2033-34"},null,null,null,null,null,null,null,null,{"$f":"FRCP_y12","v":"2034-35"},null,null,null,null,null,null,null,null,{"$f":"FRCP_y13","v":"2035-36"},null,null,null,null,null,null,null,null,{"$f":"FRCP_y14","v":"2036-37"},null,null,null,null,null,null,null,null,{"$f":"FRCP_y15","v":{"$error":"#NAME?"}}]
[]
[null,null,null,null,null,null,null,null,null,null,null,null,null,null,null,null,null,null,null,null,null,null,null,null,null,"Transitional period",null,null,null,null,null,null,null,null,null,null,null,"1 January 2023 to 30 June 2023"]
[]
[null,null,null,null,null,null,null,null,null,null,null,null,null,null,null,null,null,null,null,null,null,null,null,"RESETS",null,"Current period",null,null,null,null,null,null,null,null,null,null,null,2018,null,null,null,null,null,null,null,null,2019,null,null,null,null,null,null,null,null,2020,null,null,null,null,null,null,null,null,2021,null,null,null,null,null,null,null,null,2022]
[null,null,null,null,null,null,null,null,null,null,null,null,null,null,null,null,null,null,null,null,null,null,null,null,null,null,null,null,null,null,null,null,null,null,null,null,null,{"$f":"CRCP_y6","v":"2023-24"},null,null,null,null,null,null,null,null,{"$f":"CRCP_y7","v":"2024-25"},null,null,null,null,null,null,null,null,{"$f":"CRCP_y8","v":"2025-26"},null,null,null,null,null,null,null,null,{"$f":"CRCP_y9","v":"2026-27"},null,null,null,null,null,null,null,null,{"$f":"CRCP_y10","v":"2027-28"}]
[null,null,null,null,null,null,null,null,null,null,null,null,null,null,null,null,null,null,null,null,null,null,null,null,null,null,null,null,null,null,null,null,null,null,null,null,null,{"$f":"CRCP_y11","v":"2028-29"},null,null,null,null,null,null,null,null,{"$f":"CRCP_y12","v":"2029-30"},null,null,null,null,null,null,null,null,{"$f":"CRCP_y13","v":"2030-31"},null,null,null,null,null,null,null,null,{"$f":"CRCP_y14","v":"2031-32"},null,null,null,null,null,null,null,null,{"$f":"CRCP_y15","v":"2032-33"}]
[]
[null,null,null,null,null,null,null,null,null,null,null,null,null,null,null,null,null,null,null,null,null,null,null,null,null,"Previous period",null,null,null,null,null,null,null,null,null,null,null,2013,null,null,null,null,null,null,null,null,2014,null,null,null,null,null,null,null,null,2015,null,null,null,null,null,null,null,null,2016,null,null,null,null,null,null,null,null,2017]
[null,null,null,null,null,null,null,null,null,null,null,null,null,null,null,null,null,null,null,null,null,null,null,null,null,null,null,null,null,null,null,null,null,null,null,null,null,{"$f":"PRCP_y6","v":"2018-19"},null,null,null,null,null,null,null,null,{"$f":"PRCP_y7","v":"2019-20"},null,null,null,null,null,null,null,null,{"$f":"PRCP_y8","v":"2020-21"},null,null,null,null,null,null,null,null,{"$f":"PRCP_y9","v":"2021-22"},null,null,null,null,null,null,null,null,{"$f":"PRCP_y10","v":"2022-23"}]
[null,null,null,null,null,null,null,null,null,null,null,null,null,null,null,null,null,null,null,null,null,null,null,null,null,null,null,null,null,null,null,null,null,null,null,null,null,{"$f":"PRCP_y11","v":"2023-24"},null,null,null,null,null,null,null,null,{"$f":"PRCP_y12","v":"2024-25"},null,null,null,null,null,null,null,null,{"$f":"PRCP_y13","v":"2025-26"},null,null,null,null,null,null,null,null,{"$f":"PRCP_y14","v":"2026-27"},null,null,null,null,null,null,null,null,{"$f":"PRCP_y15","v":"2027-28"}]
[]
[null,null,null,null,null,null,null,null,null,null,null,null,null,null,null,null,null,null,null,null,null,null,null,null,null,"Commencing year",null,null,null,null,null,null,null,null,null,null,null,"2023-24"]
[null,null,null,null,null,null,null,null,null,null,null,null,null,null,null,null,null,null,null,null,null,null,null,"ANNUAL RINS"]
[null,null,null,null,null,null,null,null,null,null,null,null,null,null,null,null,null,null,null,null,null,null,null,null,null,"Final year",null,null,null,null,null,null,null,null,null,null,null,"2027-28"]
[]
[]
[]
[null,null,null,null,null,null,null,null,null,null,null,null,null,null,null,null,"SUBMISSION DETAILS"]
[]
[null,null,null,null,null,null,null,null,null,null,null,null,null,null,null,null,null,null,null,null,null,null,null,null,null,"RIN type",null,null,null,null,null,null,null,null,null,null,null,{"$f":"INDIRECT(dms_Model)","v":"Regulatory Reporting (Reset)"}]
[]
[null,null,null,null,null,null,null,null,null,null,null,null,null,null,null,null,null,null,null,null,null,null,null,null,null,"Source",null,null,null,null,null,null,null,null,null,null,null,"Regulatory proposal"]
[]
[null,null,null,null,null,null,null,null,null,null,null,null,null,null,null,null,null,null,null,null,null,null,null,"THIS FILE",null,"Data Quality",null,null,null,null,null,null,null,null,null,null,null,"Consolidated"]
[]
[null,null,null,null,null,null,null,null,null,null,null,null,null,null,null,null,null,null,null,null,null,null,null,null,null,"Confidentiality Status",null,null,null,null,null,null,null,null,null,null,null,"Public"]
[]
[null,null,null,null,null,null,null,null,null,null,null,null,null,null,null,null,null,null,null,null,null,null,null,null,null,"Amended RIN \nAmendment Reason",null,null,null,null,null,null,null,null,null,null,null,"."]
[]
[]
[]
[null,null,null,null,null,null,null,null,null,null,null,null,null,null,null,null,null,null,null,null,null,null,null,null,null,"Submission Date",null,null,null,null,null,null,null,null,null,null,null,"2022-07-01",null,null,null,null,null,null,null,null,null,null,null,null,null,null,null,null,null,"Please enter date this file submitted to AER"]

{"sheet":"N1. Demand","index":7,"n_rows":96,"n_cols":9,"rows_kept":96,"cut":false,"hidden":false,"merged":[]}
[null,{"$f":"INDEX(dms_Worksheet_List,MATCH(dms_Model,dms_Model_List))","v":"REGULATORY REPORTING STATEMENT"}]
[null,{"$f":"dms_TradingName","v":"AusNet (Gas)"}]
[null,{"$f":"dms_Header_Span","v":"2021-22 to 2027-28"}]
[null,"N1. DEMAND"]
[]
[null,"N1.1 - DEMAND - BY CUSTOMER TYPE"]
[null,null,"VOLUME"]
[null,null,"GJ"]
[null,null,{"$f":"VLOOKUP(CRCP_y4,'AER lookups'!$B$52:$C$101,2,0)","v":2022},{"$f":"CONCATENATE(\"1 Jan-30 Jun \"&(C9+1))","v":"1 Jan-30 Jun 2023"},{"$f":"FRCP_y1","v":"2023-24"},{"$f":"FRCP_y2","v":"2024-25"},{"$f":"FRCP_y3","v":"2025-26"},{"$f":"FRCP_y4","v":"2026-27"},{"$f":"FRCP_y5","v":"2027-28"}]
[null,"Residential",{"$f":"SUM(C21,C23,C25,C27)","v":31708822.429773424},{"$f":"SUM(D21,D23,D25,D27)","v":12539510.834329322},31255312.316056099,31135197.114078853,31298330.504176348,31746711.929648921,32283972.952542555]
[null,"Commercial",{"$f":"SUM(C22,C24,C26,C28)","v":6104918.2925856737},2942804.8786398186,6261663.6148024118,6180197.9367408892,6156615.8166677495,6188099.3859273056,6237212.1026167329]
[null,"Industrial","n/a","n/a","n/a","n/a","n/a","n/a","n/a"]
[null,"Total",{"$f":"SUM(C10:C12)","v":37813740.722359098},15482315.712969141,37516975.930858508,37315395.05081974,37454946.320844099,37934811.315576226,38521185.055159286]
[]
[]
[]
[null,"N1.2 - DEMAND - BY TARIFF"]
[null,null,"VOLUMES"]
[null,null,"GJ"]
[null,"Tariff",{"$f":"VLOOKUP(CRCP_y4,'AER lookups'!$B$52:$C$101,2,0)","v":2022},{"$f":"CONCATENATE(\"1 Jan-30 Jun \"&(C20+1))","v":"1 Jan-30 Jun 2023"},{"$f":"FRCP_y1","v":"2023-24"},{"$f":"FRCP_y2","v":"2024-25"},{"$f":"FRCP_y3","v":"2025-26"},{"$f":"FRCP_y4","v":"2026-27"},{"$f":"FRCP_y5","v":"2027-28"}]
[null,"Tariff V Central Domestic",24263459.713744033,9620704.1049700882,23965943.752913348,23906012.706082243,24062694.881623454,24435483.586057324,24875370.22373566]
[null,"Tariff V Central Non-Domestic",4413144.5667557949,2146111.8181104735,4531957.2885527965,4476913.0107401032,4463803.0782414898,4490325.5691430019,4529526.5178495506]
[null,"Tariff V West Domestic",6777210.6864883862,2652853.3840769697,6613543.8226422053,6543081.1685763914,6533438.9546061354,6586822.5931727206,6660053.3021604242]
[null,"Tariff V West Non-Domestic",1591429.1454643658,747691.73303692485,1626667.5358995157,1601360.926025714,1591049.5183351464,1595268.1153769554,1604147.3726281933]
[null,"Tariff V Adjoining Central Domestic",73681.303675118514,30588.66683054197,77663.241221359771,80918.207298715439,84809.654076548919,89363.698874312977,94133.489548182508]
[null,"Tariff V Adjoining Central Non-Domestic",3607.5854702299657,1911.6385164516394,3788.1830389322845,3822.2625716247685,3891.1577841367944,3991.2881217305403,4101.749099155496]
[null,"Tariff V Adjoining West Domestic",594470.72586588538,235364.67845172295,598161.49927918392,605185.03212150314,617387.01387020771,635042.05154456256,654415.9370982874]
[null,"Tariff V Adjoining West Non-Domestic",96736.994895283206,47089.688975968209,99250.60731116723,98101.737403447623,97872.062306976397,98514.413285617949,99436.463039832801]
[null,"Tariff D West & Central","n/a","n/a","n/a","n/a","n/a","n/a","n/a"]
[null,"Tariff D Adjoining West & Central","n/a","n/a","n/a","n/a","n/a","n/a","n/a"]
[null,"Tariff M West & Central","n/a","n/a","n/a","n/a","n/a","n/a","n/a"]
[null,"Tariff M Adjoining West & Central","n/a","n/a","n/a","n/a","n/a","n/a","n/a"]
[]
[]
[]
[]
[]
[]
[]
[]
[]
[]
[]
[]
[]
[]
[]
[]
[]
[]
[]
[]
[]
[]
[]
[]
[]
[]
[]
[]
[]
[]
[]
[]
[]
[]
[]
[]
[]
[]
[]
[]
[]
[]
[]
[]
[]
[]
[]
[]
[]
[]
[]
[]
[]
[]
[]
[]
[]
[]
[]
[]
[]
[]
[]
[null,"Total",{"$f":"SUM(C21:C95)","v":37813740.722359098},15482315.712969139,37516975.930858515,37315395.05081974,37454946.320844099,37934811.315576226,38521185.055159293]

{"sheet":"S1.1 Customer numbers","index":8,"n_rows":34,"n_cols":9,"rows_kept":34,"cut":false,"hidden":false,"merged":[]}
[null,{"$f":"INDEX(dms_Worksheet_List,MATCH(dms_Model,dms_Model_List))","v":"REGULATORY REPORTING STATEMENT"}]
[null,{"$f":"dms_TradingName","v":"AusNet (Gas)"}]
[null,{"$f":"dms_Header_Span","v":"2021-22 to 2027-28"}]
[null,"S1. CUSTOMER NUMBERS"]
[]
[null,"S1.1 - CUSTOMER NUMBERS - BY CUSTOMER TYPE "]
[null,"A. RESIDENTIAL"]
[null,null,"VOLUMES"]
[null,null,"0's"]
[null,null,{"$f":"VLOOKUP(CRCP_y4,'AER lookups'!$B$52:$C$101,2,0)","v":2022},{"$f":"CONCATENATE(\"1 Jan-30 Jun \"&(C10+1))","v":"1 Jan-30 Jun 2023"},{"$f":"FRCP_y1","v":"2023-24"},{"$f":"FRCP_y2","v":"2024-25"},{"$f":"FRCP_y3","v":"2025-26"},{"$f":"FRCP_y4","v":"2026-27"},{"$f":"FRCP_y5","v":"2027-28"}]
[null,"Customer numbers - Beginning of year",{"$f":"SUM('S1.2 Customer numbers'!C11,'S1.2 Customer numbers'!C13,'S1.2 Customer numbers'!C15,'S1.2 Customer numbers'!C17)","v":759407},{"$f":"C12","v":775187.34928235516},{"$f":"D12","v":783516.8247746058},783516.8247746058,800434.9179784318,817897.50919278793,835888.94360849645]
[null,"Customer numbers - End of year",{"$f":"+SUM('S1.2 Customer numbers'!C92,'S1.2 Customer numbers'!C94,'S1.2 Customer numbers'!C96,'S1.2 Customer numbers'!C98)","v":775187.34928235516},{"$f":"+SUM('S1.2 Customer numbers'!D92,'S1.2 Customer numbers'!D94,'S1.2 Customer numbers'!D96,'S1.2 Customer numbers'!D98)","v":783516.8247746058},{"$f":"+SUM('S1.2 Customer numbers'!E92,'S1.2 Customer numbers'!E94,'S1.2 Customer numbers'!E96,'S1.2 Customer numbers'!E98)","v":783516.8247746058},{"$f":"+SUM('S1.2 Customer numbers'!F92,'S1.2 Customer numbers'!F94,'S1.2 Customer numbers'!F96,'S1.2 Customer numbers'!F98)","v":800434.9179784318},{"$f":"+SUM('S1.2 Customer numbers'!G92,'S1.2 Customer numbers'!G94,'S1.2 Customer numbers'!G96,'S1.2 Customer numbers'!G98)","v":817897.50919278793},{"$f":"+SUM('S1.2 Customer numbers'!H92,'S1.2 Customer numbers'!H94,'S1.2 Customer numbers'!H96,'S1.2 Customer numbers'!H98)","v":835888.94360849645},{"$f":"+SUM('S1.2 Customer numbers'!I92,'S1.2 Customer numbers'!I94,'S1.2 Customer numbers'!I96,'S1.2 Customer numbers'!I98)","v":853341.24707404908}]
[null,"Total customer connections",{"$f":"+SUM('S1.2 Customer numbers'!C173,'S1.2 Customer numbers'!C175,'S1.2 Customer numbers'!C177,'S1.2 Customer numbers'!C179)","v":17733.303972092825},{"$f":"+SUM('S1.2 Customer numbers'!D173,'S1.2 Customer numbers'!D175,'S1.2 Customer numbers'!D177,'S1.2 Customer numbers'!D179)","v":9317.036865384076},{"$f":"+SUM('S1.2 Customer numbers'!E173,'S1.2 Customer numbers'!E175,'S1.2 Customer numbers'!E177,'S1.2 Customer numbers'!E179)","v":18938.327364280736},{"$f":"+SUM('S1.2 Customer numbers'!F173,'S1.2 Customer numbers'!F175,'S1.2 Customer numbers'!F177,'S1.2 Customer numbers'!F179)","v":19529.479723936241},{"$f":"+SUM('S1.2 Customer numbers'!G173,'S1.2 Customer numbers'!G175,'S1.2 Customer numbers'!G177,'S1.2 Customer numbers'!G179)","v":20106.438367849623},{"$f":"+SUM('S1.2 Customer numbers'!H173,'S1.2 Customer numbers'!H175,'S1.2 Customer numbers'!H177,'S1.2 Customer numbers'!H179)","v":19613.915533544259},{"$f":"+SUM('S1.2 Customer numbers'!I173,'S1.2 Customer numbers'!I175,'S1.2 Customer numbers'!I177,'S1.2 Customer numbers'!I179)","v":19102.873359070509}]
[null,"Total customer disconnections",{"$f":"+SUM('S1.2 Customer numbers'!C254,'S1.2 Customer numbers'!C256,'S1.2 Customer numbers'!C258,'S1.2 Customer numbers'!C260)","v":1952.9546897377322},{"$f":"+SUM('S1.2 Customer numbers'!D254,'S1.2 Customer numbers'!D256,'S1.2 Customer numbers'!D258,'S1.2 Customer numbers'!D260)","v":987.56137313325223},{"$f":"+SUM('S1.2 Customer numbers'!E254,'S1.2 Customer numbers'!E256,'S1.2 Customer numbers'!E258,'S1.2 Customer numbers'!E260)","v":18938.327364280736},{"$f":"+SUM('S1.2 Customer numbers'!F254,'S1.2 Customer numbers'!F256,'S1.2 Customer numbers'!F258,'S1.2 Customer numbers'!F260)","v":2611.386520110374},{"$f":"+SUM('S1.2 Customer numbers'!G254,'S1.2 Customer numbers'!G256,'S1.2 Customer numbers'!G258,'S1.2 Customer numbers'!G260)","v":2643.847153493457},{"$f":"+SUM('S1.2 Customer numbers'!H254,'S1.2 Customer numbers'!H256,'S1.2 Customer numbers'!H258,'S1.2 Customer numbers'!H260)","v":1622.4811178357204},{"$f":"+SUM('S1.2 Customer numbers'!I254,'S1.2 Customer numbers'!I256,'S1.2 Customer numbers'!I258,'S1.2 Customer numbers'!I260)","v":1650.5698935179657}]
[]
[]
[null,"B. COMMERCIAL"]
[null,null,"VOLUMES"]
[null,null,"0's"]
[null,null,{"$f":"VLOOKUP(CRCP_y4,'AER lookups'!$B$52:$C$101,2,0)","v":2022},{"$f":"CONCATENATE(\"1 Jan-30 Jun \"&(C20+1))","v":"1 Jan-30 Jun 2023"},{"$f":"FRCP_y1","v":"2023-24"},{"$f":"FRCP_y2","v":"2024-25"},{"$f":"FRCP_y3","v":"2025-26"},{"$f":"FRCP_y4","v":"2026-27"},{"$f":"FRCP_y5","v":"2027-28"}]
[null,"Customer numbers - Beginning of year",{"$f":"SUM('S1.2 Customer numbers'!C12,'S1.2 Customer numbers'!C14,'S1.2 Customer numbers'!C16,'S1.2 Customer numbers'!C18)","v":19019},{"$f":"C22","v":19067.919082775297},{"$f":"D22","v":19093.740456801279},19093.740456801279,19146.186545733137,19200.320578497642,19256.094025186339]
[null,"Customer numbers - End of year",{"$f":"+SUM('S1.2 Customer numbers'!C93,'S1.2 Customer numbers'!C95,'S1.2 Customer numbers'!C97,'S1.2 Customer numbers'!C99)","v":19067.919082775297},{"$f":"+SUM('S1.2 Customer numbers'!D93,'S1.2 Customer numbers'!D95,'S1.2 Customer numbers'!D97,'S1.2 Customer numbers'!D99)","v":19093.740456801279},{"$f":"+SUM('S1.2 Customer numbers'!E93,'S1.2 Customer numbers'!E95,'S1.2 Customer numbers'!E97,'S1.2 Customer numbers'!E99)","v":19093.740456801279},{"$f":"+SUM('S1.2 Customer numbers'!F93,'S1.2 Customer numbers'!F95,'S1.2 Customer numbers'!F97,'S1.2 Customer numbers'!F99)","v":19146.186545733137},{"$f":"+SUM('S1.2 Customer numbers'!G93,'S1.2 Customer numbers'!G95,'S1.2 Customer numbers'!G97,'S1.2 Customer numbers'!G99)","v":19200.320578497642},{"$f":"+SUM('S1.2 Customer numbers'!H93,'S1.2 Customer numbers'!H95,'S1.2 Customer numbers'!H97,'S1.2 Customer numbers'!H99)","v":19256.094025186339},{"$f":"+SUM('S1.2 Customer numbers'!I93,'S1.2 Customer numbers'!I95,'S1.2 Customer numbers'!I97,'S1.2 Customer numbers'!I99)","v":19310.196165929552}]
[null,"Total customer connections",{"$f":"SUM('S1.2 Customer numbers'!C174,'S1.2 Customer numbers'!C176,'S1.2 Customer numbers'!C178,'S1.2 Customer numbers'!C180)","v":138.73335456229722},{"$f":"SUM('S1.2 Customer numbers'!D174,'S1.2 Customer numbers'!D176,'S1.2 Customer numbers'!D178,'S1.2 Customer numbers'!D180)","v":70.801625767669137},{"$f":"SUM('S1.2 Customer numbers'!E174,'S1.2 Customer numbers'!E176,'S1.2 Customer numbers'!E178,'S1.2 Customer numbers'!E180)","v":142.70371249290565},{"$f":"SUM('S1.2 Customer numbers'!F174,'S1.2 Customer numbers'!F176,'S1.2 Customer numbers'!F178,'S1.2 Customer numbers'!F180)","v":144.69853216573296},{"$f":"SUM('S1.2 Customer numbers'!G174,'S1.2 Customer numbers'!G176,'S1.2 Customer numbers'!G178,'S1.2 Customer numbers'!G180)","v":146.65439523945562},{"$f":"SUM('S1.2 Customer numbers'!H174,'S1.2 Customer numbers'!H176,'S1.2 Customer numbers'!H178,'S1.2 Customer numbers'!H180)","v":145.2896684007676},{"$f":"SUM('S1.2 Customer numbers'!I174,'S1.2 Customer numbers'!I176,'S1.2 Customer numbers'!I178,'S1.2 Customer numbers'!I180)","v":143.86217283570332}]
[null,"Total customer disconnections",{"$f":"SUM('S1.2 Customer numbers'!C255,'S1.2 Customer numbers'!C257,'S1.2 Customer numbers'!C259,'S1.2 Customer numbers'!C261)","v":89.814271786996954},{"$f":"SUM('S1.2 Customer numbers'!D255,'S1.2 Customer numbers'!D257,'S1.2 Customer numbers'!D259,'S1.2 Customer numbers'!D261)","v":44.980251741690722},{"$f":"SUM('S1.2 Customer numbers'!E255,'S1.2 Customer numbers'!E257,'S1.2 Customer numbers'!E259,'S1.2 Customer numbers'!E261)","v":142.70371249290565},{"$f":"SUM('S1.2 Customer numbers'!F255,'S1.2 Customer numbers'!F257,'S1.2 Customer numbers'!F259,'S1.2 Customer numbers'!F261)","v":92.252443233874075},{"$f":"SUM('S1.2 Customer numbers'!G255,'S1.2 Customer numbers'!G257,'S1.2 Customer numbers'!G259,'S1.2 Customer numbers'!G261)","v":92.520362474951582},{"$f":"SUM('S1.2 Customer numbers'!H255,'S1.2 Customer numbers'!H257,'S1.2 Customer numbers'!H259,'S1.2 Customer numbers'!H261)","v":89.516221712071641},{"$f":"SUM('S1.2 Customer numbers'!I255,'S1.2 Customer numbers'!I257,'S1.2 Customer numbers'!I259,'S1.2 Customer numbers'!I261)","v":89.760032092490391}]
[]
[]
[null,"C. INDUSTRIAL"]
[null,null,"VOLUMES"]
[null,null,"0's"]
[null,null,{"$f":"VLOOKUP(CRCP_y4,'AER lookups'!$B$52:$C$101,2,0)","v":2022},{"$f":"CONCATENATE(\"1 Jan-30 Jun \"&(C30+1))","v":"1 Jan-30 Jun 2023"},{"$f":"FRCP_y1","v":"2023-24"},{"$f":"FRCP_y2","v":"2024-25"},{"$f":"FRCP_y3","v":"2025-26"},{"$f":"FRCP_y4","v":"2026-27"},{"$f":"FRCP_y5","v":"2027-28"}]
[null,"Customer numbers - Beginning of year","n/a","n/a","n/a","n/a","n/a","n/a","n/a"]
[null,"Customer numbers - End of year","n/a","n/a","n/a","n/a","n/a","n/a","n/a"]
[null,"Total customer connections","n/a","n/a","n/a","n/a","n/a","n/a","n/a"]
[null,"Total customer disconnections","n/a","n/a","n/a","n/a","n/a","n/a","n/a"]

{"sheet":"S1.2 Customer numbers","index":9,"n_rows":329,"n_cols":9,"rows_kept":329,"cut":false,"hidden":false,"merged":[]}
[null,{"$f":"INDEX(dms_Worksheet_List,MATCH(dms_Model,dms_Model_List))","v":"REGULATORY REPORTING STATEMENT"}]
[null,{"$f":"dms_TradingName","v":"AusNet (Gas)"}]
[null,{"$f":"dms_Header_Span","v":"2021-22 to 2027-28"}]
[null,"S1. CUSTOMER NUMBERS"]
[]
[null,"S1.2 - CUSTOMER NUMBERS - BY TARIFF"]
[null,"S1.2.1 - CUSTOMER NUMBERS - BEGINNING OF YEAR"]
[null,null,"VOLUMES"]
[null,null,"0's"]
[null,null,{"$f":"VLOOKUP(CRCP_y4,'AER lookups'!$B$52:$C$101,2,0)","v":2022},{"$f":"CONCATENATE(\"1 Jan-30 Jun \"&(C10+1))","v":"1 Jan-30 Jun 2023"},{"$f":"FRCP_y1","v":"2023-24"},{"$f":"FRCP_y2","v":"2024-25"},{"$f":"FRCP_y3","v":"2025-26"},{"$f":"FRCP_y4","v":"2026-27"},{"$f":"FRCP_y5","v":"2027-28"}]
[null,{"$f":"IF(ISBLANK('N1. Demand'!B21),\"\",'N1. Demand'!B21)","v":"Tariff V Central Domestic"},589629,{"$f":"C92","v":602504.93497561489},609288.95267938077,609288.95267938077,623125.3987129028,637468.61405461445,652277.52657522564]
[null,{"$f":"IF(ISBLANK('N1. Demand'!B22),\"\",'N1. Demand'!B22)","v":"Tariff V Central Non-Domestic"},11966,{"$f":"C93","v":12005.915398424406},12026.945853306081,12026.945853306081,12069.838836009998,12114.302803569304,12160.210432383197]
[null,{"$f":"IF(ISBLANK('N1. Demand'!B23),\"\",'N1. Demand'!B23)","v":"Tariff V West Domestic"},155189,{"$f":"C94","v":157403.56244044524},158609.17047845284,158609.17047845284,160983.40271076921,163360.09864168023,165784.68032720688]
[null,{"$f":"IF(ISBLANK('N1. Demand'!B24),\"\",'N1. Demand'!B24)","v":"Tariff V West Non-Domestic"},6713,{"$f":"C95","v":6719.8651435653801},6723.602528483204,6723.602528483204,6730.9626484033843,6738.3304057892083,6745.846609014342]
[null,{"$f":"IF(ISBLANK('N1. Demand'!B25),\"\",'N1. Demand'!B25)","v":"Tariff V Adjoining Central Domestic"},2306,{"$f":"C96","v":2491.9529760157025},2587.2865381141232,2587.2865381141232,2780.2148955663411,2977.7334051717808,3179.9653933447203]
[null,{"$f":"IF(ISBLANK('N1. Demand'!B26),\"\",'N1. Demand'!B26)","v":"Tariff V Adjoining Central Non-Domestic"},25,{"$f":"C97","v":25.576454225648678},25.871988268153785,25.871988268153785,26.470066176255656,27.082373556032522,27.709292719368634]
[null,{"$f":"IF(ISBLANK('N1. Demand'!B27),\"\",'N1. Demand'!B27)","v":"Tariff V Adjoining West Domestic"},12283,{"$f":"C98","v":12786.898890279261},13031.415078658176,13031.415078658176,13545.901659193436,14091.063091321486,14646.771312719246]
[null,{"$f":"IF(ISBLANK('N1. Demand'!B28),\"\",'N1. Demand'!B28)","v":"Tariff V Adjoining West Non-Domestic"},315,{"$f":"C99","v":316.56208655986569},317.32008674384031,317.32008674384031,318.91499514349965,320.60499558309664,322.32769106942965]
[null,{"$f":"IF(ISBLANK('N1. Demand'!B29),\"\",'N1. Demand'!B29)","v":"Tariff D West & Central"},null,{"$f":"C100","v":0},0,0,0,0,0]
[null,{"$f":"IF(ISBLANK('N1. Demand'!B30),\"\",'N1. Demand'!B30)","v":"Tariff D Adjoining West & Central"},null,{"$f":"C101","v":0},0,0,0,0,0]
[null,{"$f":"IF(ISBLANK('N1. Demand'!B31),\"\",'N1. Demand'!B31)","v":"Tariff M West & Central"},null,{"$f":"C102","v":0},0,0,0,0,0]
[null,{"$f":"IF(ISBLANK('N1. Demand'!B32),\"\",'N1. Demand'!B32)","v":"Tariff M Adjoining West & Central"},null,{"$f":"C103","v":0},0,0,0,0,0]
[null,{"$f":"IF(ISBLANK('N1. Demand'!B33),\"\",'N1. Demand'!B33)","v":""},null,{"$f":"C104","v":0},0,0,0,0,0]
[null,{"$f":"IF(ISBLANK('N1. Demand'!B34),\"\",'N1. Demand'!B34)","v":""},null,{"$f":"C105","v":0},0,0,0,0,0]
[null,{"$f":"IF(ISBLANK('N1. Demand'!B35),\"\",'N1. Demand'!B35)","v":""},null,{"$f":"C106","v":0},0,0,0,0,0]
[null,{"$f":"IF(ISBLANK('N1. Demand'!B36),\"\",'N1. Demand'!B36)","v":""},null,{"$f":"C107","v":0},0,0,0,0,0]
[null,{"$f":"IF(ISBLANK('N1. Demand'!B37),\"\",'N1. Demand'!B37)","v":""},null,{"$f":"C108","v":0},0,0,0,0,0]
[null,{"$f":"IF(ISBLANK('N1. Demand'!B38),\"\",'N1. Demand'!B38)","v":""},null,{"$f":"C109","v":0},0,0,0,0,0]
[null,{"$f":"IF(ISBLANK('N1. Demand'!B39),\"\",'N1. Demand'!B39)","v":""},null,{"$f":"C110","v":0},0,0,0,0,0]
[null,{"$f":"IF(ISBLANK('N1. Demand'!B40),\"\",'N1. Demand'!B40)","v":""},null,{"$f":"C111","v":0},0,0,0,0,0]
[null,{"$f":"IF(ISBLANK('N1. Demand'!B41),\"\",'N1. Demand'!B41)","v":""},null,{"$f":"C112","v":0},0,0,0,0,0]
[null,{"$f":"IF(ISBLANK('N1. Demand'!B42),\"\",'N1. Demand'!B42)","v":""},null,{"$f":"C113","v":0},0,0,0,0,0]
[null,{"$f":"IF(ISBLANK('N1. Demand'!B43),\"\",'N1. Demand'!B43)","v":""},null,{"$f":"C114","v":0},0,0,0,0,0]
[null,{"$f":"IF(ISBLANK('N1. Demand'!B44),\"\",'N1. Demand'!B44)","v":""},null,{"$f":"C115","v":0},0,0,0,0,0]
[null,{"$f":"IF(ISBLANK('N1. Demand'!B45),\"\",'N1. Demand'!B45)","v":""},null,{"$f":"C116","v":0},0,0,0,0,0]
[null,{"$f":"IF(ISBLANK('N1. Demand'!B46),\"\",'N1. Demand'!B46)","v":""},null,{"$f":"C117","v":0},0,0,0,0,0]
[null,{"$f":"IF(ISBLANK('N1. Demand'!B47),\"\",'N1. Demand'!B47)","v":""},null,{"$f":"C118","v":0},0,0,0,0,0]
[null,{"$f":"IF(ISBLANK('N1. Demand'!B48),\"\",'N1. Demand'!B48)","v":""},null,{"$f":"C119","v":0},0,0,0,0,0]
[null,{"$f":"IF(ISBLANK('N1. Demand'!B49),\"\",'N1. Demand'!B49)","v":""},null,{"$f":"C120","v":0},0,0,0,0,0]
[null,{"$f":"IF(ISBLANK('N1. Demand'!B50),\"\",'N1. Demand'!B50)","v":""},null,{"$f":"C121","v":0},0,0,0,0,0]
[null,{"$f":"IF(ISBLANK('N1. Demand'!B51),\"\",'N1. Demand'!B51)","v":""},null,{"$f":"C122","v":0},0,0,0,0,0]
[null,{"$f":"IF(ISBLANK('N1. Demand'!B52),\"\",'N1. Demand'!B52)","v":""},null,{"$f":"C123","v":0},0,0,0,0,0]
[null,{"$f":"IF(ISBLANK('N1. Demand'!B53),\"\",'N1. Demand'!B53)","v":""},null,{"$f":"C124","v":0},0,0,0,0,0]
[null,{"$f":"IF(ISBLANK('N1. Demand'!B54),\"\",'N1. Demand'!B54)","v":""},null,{"$f":"C125","v":0},0,0,0,0,0]
[null,{"$f":"IF(ISBLANK('N1. Demand'!B55),\"\",'N1. Demand'!B55)","v":""},null,{"$f":"C126","v":0},0,0,0,0,0]
[null,{"$f":"IF(ISBLANK('N1. Demand'!B56),\"\",'N1. Demand'!B56)","v":""},null,{"$f":"C127","v":0},0,0,0,0,0]
[null,{"$f":"IF(ISBLANK('N1. Demand'!B57),\"\",'N1. Demand'!B57)","v":""},null,{"$f":"C128","v":0},0,0,0,0,0]
[null,{"$f":"IF(ISBLANK('N1. Demand'!B58),\"\",'N1. Demand'!B58)","v":""},null,{"$f":"C129","v":0},0,0,0,0,0]
[null,{"$f":"IF(ISBLANK('N1. Demand'!B59),\"\",'N1. Demand'!B59)","v":""},null,{"$f":"C130","v":0},0,0,0,0,0]
[null,{"$f":"IF(ISBLANK('N1. Demand'!B60),\"\",'N1. Demand'!B60)","v":""},null,{"$f":"C131","v":0},{"$f":"D131","v":0},{"$f":"E131","v":0},{"$f":"F131","v":0},{"$f":"G131","v":0},{"$f":"H131","v":0}]
[null,{"$f":"IF(ISBLANK('N1. Demand'!B61),\"\",'N1. Demand'!B61)","v":""},null,0,0,0,0,0,0]
[null,{"$f":"IF(ISBLANK('N1. Demand'!B62),\"\",'N1. Demand'!B62)","v":""},null,0,0,0,0,0,0]
[null,{"$f":"IF(ISBLANK('N1. Demand'!B63),\"\",'N1. Demand'!B63)","v":""},null,{"$f":"C134","v":0},0,0,0,0,0]
[null,{"$f":"IF(ISBLANK('N1. Demand'!B64),\"\",'N1. Demand'!B64)","v":""},null,{"$f":"C135","v":0},0,0,0,0,0]
[null,{"$f":"IF(ISBLANK('N1. Demand'!B65),\"\",'N1. Demand'!B65)","v":""},null,{"$f":"C136","v":0},0,0,0,0,0]
[null,{"$f":"IF(ISBLANK('N1. Demand'!B66),\"\",'N1. Demand'!B66)","v":""},null,{"$f":"C137","v":0},0,0,0,0,0]
[null,{"$f":"IF(ISBLANK('N1. Demand'!B67),\"\",'N1. Demand'!B67)","v":""},null,{"$f":"C138","v":0},0,0,0,0,0]
[null,{"$f":"IF(ISBLANK('N1. Demand'!B68),\"\",'N1. Demand'!B68)","v":""},null,{"$f":"C139","v":0},{"$f":"D139","v":0},{"$f":"E139","v":0},{"$f":"F139","v":0},{"$f":"G139","v":0},{"$f":"H139","v":0}]
[null,{"$f":"IF(ISBLANK('N1. Demand'!B69),\"\",'N1. Demand'!B69)","v":""},null,0,0,0,0,0,0]
[null,{"$f":"IF(ISBLANK('N1. Demand'!B70),\"\",'N1. Demand'!B70)","v":""},null,0,0,0,0,0,0]
[null,{"$f":"IF(ISBLANK('N1. Demand'!B71),\"\",'N1. Demand'!B71)","v":""},null,0,0,0,0,0,0]
[null,{"$f":"IF(ISBLANK('N1. Demand'!B72),\"\",'N1. Demand'!B72)","v":""},null,0,0,0,0,0,0]
[null,{"$f":"IF(ISBLANK('N1. Demand'!B73),\"\",'N1. Demand'!B73)","v":""},null,0,0,0,0,0,0]
[null,{"$f":"IF(ISBLANK('N1. Demand'!B74),\"\",'N1. Demand'!B74)","v":""},null,0,0,0,0,0,0]
[null,{"$f":"IF(ISBLANK('N1. Demand'!B75),\"\",'N1. Demand'!B75)","v":""},null,0,0,0,0,0,0]
[null,{"$f":"IF(ISBLANK('N1. Demand'!B76),\"\",'N1. Demand'!B76)","v":""},null,0,0,0,0,0,0]
[null,{"$f":"IF(ISBLANK('N1. Demand'!B77),\"\",'N1. Demand'!B77)","v":""},null,0,0,0,0,0,0]
[null,{"$f":"IF(ISBLANK('N1. Demand'!B78),\"\",'N1. Demand'!B78)","v":""},null,0,0,0,0,0,0]
[null,{"$f":"IF(ISBLANK('N1. Demand'!B79),\"\",'N1. Demand'!B79)","v":""},null,0,0,0,0,0,0]
[null,{"$f":"IF(ISBLANK('N1. Demand'!B80),\"\",'N1. Demand'!B80)","v":""},null,0,0,0,0,0,0]
[null,{"$f":"IF(ISBLANK('N1. Demand'!B81),\"\",'N1. Demand'!B81)","v":""},null,0,0,0,0,0,0]
[null,{"$f":"IF(ISBLANK('N1. Demand'!B82),\"\",'N1. Demand'!B82)","v":""},null,0,0,0,0,0,0]
[null,{"$f":"IF(ISBLANK('N1. Demand'!B83),\"\",'N1. Demand'!B83)","v":""},null,0,0,0,0,0,0]
[null,{"$f":"IF(ISBLANK('N1. Demand'!B84),\"\",'N1. Demand'!B84)","v":""},null,0,0,0,0,0,0]
[null,{"$f":"IF(ISBLANK('N1. Demand'!B85),\"\",'N1. Demand'!B85)","v":""},null,0,0,0,0,0,0]
[null,{"$f":"IF(ISBLANK('N1. Demand'!B86),\"\",'N1. Demand'!B86)","v":""},null,0,0,0,0,0,0]
[null,{"$f":"IF(ISBLANK('N1. Demand'!B87),\"\",'N1. Demand'!B87)","v":""},null,0,0,0,0,0,0]
[null,{"$f":"IF(ISBLANK('N1. Demand'!B88),\"\",'N1. Demand'!B88)","v":""},null,0,0,0,0,0,0]
[null,{"$f":"IF(ISBLANK('N1. Demand'!B89),\"\",'N1. Demand'!B89)","v":""},null,0,0,0,0,0,0]
[null,{"$f":"IF(ISBLANK('N1. Demand'!B90),\"\",'N1. Demand'!B90)","v":""},null,0,0,0,0,0,0]
[null,{"$f":"IF(ISBLANK('N1. Demand'!B91),\"\",'N1. Demand'!B91)","v":""},null,0,0,0,0,0,0]
[null,{"$f":"IF(ISBLANK('N1. Demand'!B92),\"\",'N1. Demand'!B92)","v":""},null,0,0,0,0,0,0]
[null,{"$f":"IF(ISBLANK('N1. Demand'!B93),\"\",'N1. Demand'!B93)","v":""},null,0,0,0,0,0,0]
[null,{"$f":"IF(ISBLANK('N1. Demand'!B94),\"\",'N1. Demand'!B94)","v":""},null,0,0,0,0,0,0]
[null,{"$f":"IF(ISBLANK('N1. Demand'!B95),\"\",'N1. Demand'!B95)","v":""},null,0,0,0,0,0,0]
[null,"Total",{"$f":"SUM(C11:C85)","v":778426},{"$f":"SUM(D11:D85)","v":794255.26836513029},802610.56523140706,802610.56523140706,819581.10452416493,837097.82977128553,855145.03763368283]
[]
[null,"S1.2.2 - CUSTOMER NUMBERS - END OF YEAR"]
[null,null,"VOLUMES"]
[null,null,"0's"]
[null,null,{"$f":"VLOOKUP(CRCP_y4,'AER lookups'!$B$52:$C$101,2,0)","v":2022},{"$f":"CONCATENATE(\"1 Jan-30 Jun \"&(C91+1))","v":"1 Jan-30 Jun 2023"},{"$f":"FRCP_y1","v":"2023-24"},{"$f":"FRCP_y2","v":"2024-25"},{"$f":"FRCP_y3","v":"2025-26"},{"$f":"FRCP_y4","v":"2026-27"},{"$f":"FRCP_y5","v":"2027-28"}]
[null,{"$f":"IF(ISBLANK(B11),\"\",B11)","v":"Tariff V Central Domestic"},602504.93497561489,609288.95267938077,609288.95267938077,623125.3987129028,637468.61405461445,652277.52657522564,666598.90207706788]
[null,"Tariff V Central Non-Domestic",12005.915398424406,12026.945853306081,12026.945853306081,12069.838836009998,12114.302803569304,12160.210432383197,12204.606696438908]
[null,"Tariff V West Domestic",157403.56244044524,158609.17047845284,158609.17047845284,160983.40271076921,163360.09864168023,165784.68032720688,168170.54884460615]
[null,"Tariff V West Non-Domestic",6719.8651435653801,6723.602528483204,6723.602528483204,6730.9626484033843,6738.3304057892083,6745.846609014342,6753.2428014182797]
[null,"Tariff V Adjoining Central Domestic",2491.9529760157025,2587.2865381141232,2587.2865381141232,2780.2148955663411,2977.7334051717808,3179.9653933447203,3378.7373839668962]
[null,"Tariff V Adjoining Central Non-Domestic",25.576454225648678,25.871988268153785,25.871988268153785,26.470066176255656,27.082373556032522,27.709292719368634,28.325485890297376]
[null,"Tariff V Adjoining West Domestic",12786.898890279261,13031.415078658176,13031.415078658176,13545.901659193436,14091.063091321486,14646.771312719246,15193.058768408106]
[null,"Tariff V Adjoining West Non-Domestic",316.56208655986569,317.32008674384031,317.32008674384031,318.91499514349965,320.60499558309664,322.32769106942965,324.0211821820651]
[null,"Tariff D West & Central"]
[null,"Tariff D Adjoining West & Central"]
[null,"Tariff M West & Central"]
[null,"Tariff M Adjoining West & Central"]
[null,""]
[null,""]
[null,""]
[null,""]
[null,""]
[null,""]
[null,""]
[null,""]
[null,""]
[null,""]
[null,""]
[null,""]
[null,""]
[null,""]
[null,""]
[null,""]
[null,""]
[null,""]
[null,""]
[null,""]
[null,{"$f":"IF(ISBLANK(B43),\"\",B43)","v":""}]
[null,""]
[null,""]
[null,""]
[null,""]
[null,""]
[null,""]
[null,""]
[null,""]
[null,""]
[null,""]
[null,""]
[null,""]
[null,""]
[null,""]
[null,""]
[null,""]
[null,{"$f":"IF(ISBLANK(B60),\"\",B60)","v":""}]
[null,""]
[null,""]
[null,""]
[null,""]
[null,""]
[null,""]
[null,""]
[null,""]
[null,""]
[null,""]
[null,""]
[null,""]
[null,""]
[null,""]
[null,""]
[null,""]
[null,""]
[null,""]
[null,""]
[null,""]
[null,""]
[null,""]
[null,""]
[null,""]
[null,""]
[null,"Total",{"$f":"SUM(C92:C166)","v":794255.26836513029},{"$f":"SUM(D92:D166)","v":802610.56523140706},{"$f":"SUM(E92:E166)","v":802610.56523140706},{"$f":"SUM(F92:F166)","v":819581.10452416493},{"$f":"SUM(G92:G166)","v":837097.82977128553},{"$f":"SUM(H92:H166)","v":855145.03763368283},{"$f":"SUM(I92:I166)","v":872651.44323997851}]
[]
[null,"S1.2.3 - TOTAL CUSTOMER CONNECTIONS"]
[null,null,"VOLUMES"]
[null,null,"0's"]
[null,null,{"$f":"VLOOKUP(CRCP_y4,'AER lookups'!$B$52:$C$101,2,0)","v":2022},{"$f":"CONCATENATE(\"1 Jan-30 Jun \"&(C172+1))","v":"1 Jan-30 Jun 2023"},{"$f":"FRCP_y1","v":"2023-24"},{"$f":"FRCP_y2","v":"2024-25"},{"$f":"FRCP_y3","v":"2025-26"},{"$f":"FRCP_y4","v":"2026-27"},{"$f":"FRCP_y5","v":"2027-28"}]
[null,{"$f":"IF(ISBLANK(B11),\"\",B11)","v":"Tariff V Central Domestic"},14597.884170169827,7654.9577960248953,15618.976770420772,16167.885485300805,16677.090258033502,16231.628481967142,15764.001392457896]
[null,"Tariff V Central Non-Domestic",103.73654143362378,53.006105741948105,107.10975159505978,108.9559265379021,110.68371278361197,109.44711909195263,108.13669094771082]
[null,"Tariff V West Domestic",2422.8255231683415,1310.5580737599589,2587.3560642861048,2593.0468685847291,2644.2247487454547,2608.7511409679246,2577.8316050279896]
[null,"Tariff V West Non-Domestic",32.858272343159058,16.741985799241309,33.400974590084644,33.440297808456997,33.621067806174537,33.532865025250757,33.458468668669582]
[null,"Tariff V Adjoining Central Domestic",194.07390912299059,99.552787917666876,202.00937743010141,207.257385910886,212.64441954581173,209.84645317397036,206.77385885413784]
[null,"Tariff V Adjoining Central Non-Domestic",0.57645422564867843,0.29553404250510695,0.598077908101871,0.61230737977686545,0.62691916333611175,0.61619317092874226,0.60465426343680306]
[null,"Tariff V Adjoining West Domestic",518.52036963166245,251.96820768155578,529.98515214376084,561.28998413982072,572.47894152485253,563.68945743522102,554.26650273048699]
[null,"Tariff V Adjoining West Non-Domestic",1.5620865598656906,0.75800018397461599,1.5949083996593458,1.6900004395969859,1.7226954863330093,1.6934911126354564,1.662358955886134]
[null,"Tariff D West & Central"]
[null,"Tariff D Adjoining West & Central"]
[null,"Tariff M West & Central"]
[null,"Tariff M Adjoining West & Central"]
[null,""]
[null,""]
[null,""]
[null,""]
[null,""]
[null,""]
[null,""]
[null,""]
[null,""]
[null,""]
[null,""]
[null,""]
[null,""]
[null,""]
[null,""]
[null,""]
[null,""]
[null,""]
[null,""]
[null,""]
[null,{"$f":"IF(ISBLANK(B43),\"\",B43)","v":""}]
[null,""]
[null,""]
[null,""]
[null,""]
[null,""]
[null,""]
[null,""]
[null,""]
[null,""]
[null,""]
[null,""]
[null,""]
[null,""]
[null,""]
[null,""]
[null,""]
[null,{"$f":"IF(ISBLANK(B60),\"\",B60)","v":""}]
[null,""]
[null,""]
[null,""]
[null,""]
[null,""]
[null,""]
[null,""]
[null,""]
[null,""]
[null,""]
[null,""]
[null,""]
[null,""]
[null,""]
[null,""]
[null,""]
[null,""]
[null,""]
[null,""]
[null,""]
[null,""]
[null,""]
[null,""]
[null,""]
[null,""]
[null,"Total",{"$f":"SUM(C173:C247)","v":17872.037326655118},{"$f":"SUM(D173:D247)","v":9387.8384911517442},{"$f":"SUM(E173:E247)","v":19081.031076773641},{"$f":"SUM(F173:F247)","v":19674.178256101975},{"$f":"SUM(G173:G247)","v":20253.09276308908},{"$f":"SUM(H173:H247)","v":19759.205201945028},{"$f":"SUM(I173:I247)","v":19246.735531906212}]
[]
[null,"S1.2.4 - TOTAL CUSTOMER DISCONNECTIONS"]
[null,null,"VOLUMES"]
[null,null,"0's"]
[null,null,{"$f":"VLOOKUP(CRCP_y4,'AER lookups'!$B$52:$C$101,2,0)","v":2022},{"$f":"CONCATENATE(\"1 Jan-30 Jun \"&(C253+1))","v":"1 Jan-30 Jun 2023"},{"$f":"FRCP_y1","v":"2023-24"},{"$f":"FRCP_y2","v":"2024-25"},{"$f":"FRCP_y3","v":"2025-26"},{"$f":"FRCP_y4","v":"2026-27"},{"$f":"FRCP_y5","v":"2027-28"}]
[null,{"$f":"IF(ISBLANK(B11),\"\",B11)","v":"Tariff V Central Domestic"},{"$f":"+C173-(C92-C11)","v":1721.9491945549398},{"$f":"+D173-(D92-D11)","v":870.94009225900845},{"$f":"+E173-(E92-E11)","v":15618.976770420772},2331.4394517787841,2333.8749163218527,1422.7159613559488,1442.6258906156581]
[null,"Tariff V Central Non-Domestic",{"$f":"+C174-(C93-C12)","v":63.821143009217991},31.975650860273291,107.10975159505978,66.062943833984733,66.219745224305782,63.539490278059532,63.740426891999746]
[null,"Tariff V West Domestic",208.26308272310234,104.95003575235705,2587.3560642861048,218.81463626836103,267.52881783443036,184.16945544127884,191.96308762871877]
[null,"Tariff V West Non-Domestic",25.993128777778963,13.004600881417435,33.400974590084644,26.080177888276701,26.25331042035053,26.016661800117035,26.062276264731906]
[null,"Tariff V Adjoining Central Domestic",8.1209331072881241,4.2192258192461054,202.00937743010141,14.329028458668176,15.125909940372026,7.614465001030851,8.001868231961879]
[null,"Tariff V Adjoining Central Non-Domestic",0,0,0.598077908101871,1.4229471674994443E-2,1.4611783559246305E-2,-1.0725992407369489E-2,-1.1538907491939199E-2]
[null,"Tariff V Adjoining West Domestic",14.621479352401707,7.4520193026406787,529.98515214376084,46.803403604560572,27.317509396802166,7.9812360374618265,7.9790470416269272]
[null,"Tariff V Adjoining West Non-Domestic",0,0,1.5949083996593458,9.5092039937640038E-2,3.2695046736023414E-2,-2.920437369755291E-2,-3.1132156749322348E-2]
[null,"Tariff D West & Central"]
[null,"Tariff D Adjoining West & Central"]
[null,"Tariff M West & Central"]
[null,"Tariff M Adjoining West & Central"]
[null,""]
[null,""]
[null,""]
[null,""]
[null,""]
[null,""]
[null,""]
[null,""]
[null,""]
[null,""]
[null,""]
[null,""]
[null,""]
[null,""]
[null,""]
[null,""]
[null,""]
[null,""]
[null,""]
[null,""]
[null,{"$f":"IF(ISBLANK(B43),\"\",B43)","v":""}]
[null,""]
[null,""]
[null,""]
[null,""]
[null,""]
[null,""]
[null,""]
[null,""]
[null,""]
[null,""]
[null,""]
[null,""]
[null,""]
[null,""]
[null,""]
[null,""]
[null,{"$f":"IF(ISBLANK(B60),\"\",B60)","v":""}]
[null,""]
[null,""]
[null,""]
[null,""]
[null,""]
[null,""]
[null,""]
[null,""]
[null,""]
[null,""]
[null,""]
[null,""]
[null,""]
[null,""]
[null,""]
[null,""]
[null,""]
[null,""]
[null,""]
[null,""]
[null,""]
[null,""]
[null,""]
[null,""]
[null,""]
[null,"Total",{"$f":"SUM(C254:C328)","v":2042.7689615247291},{"$f":"SUM(D254:D328)","v":1032.541624874943},{"$f":"SUM(E254:E328)","v":19081.031076773641},{"$f":"SUM(F254:F328)","v":2703.6389633442486},{"$f":"SUM(G254:G328)","v":2736.3675159684085},{"$f":"SUM(H254:H328)","v":1711.9973395477919},{"$f":"SUM(I254:I328)","v":1740.329925610456}]